Workbook

Sheet BOQ
A3: Item | C3: Description | O3: No. of Pages
C5: SCHEDULE OF RATES - BILL OF QUANTITIES
A7: A | B7: 1 | C7: BILL NO 1: ARTISAN | O7: 1
A10: B | B10: =B7+1 -> 2 | C10: BILL NO 2: CERTIFICATE OF COMPLIANCE | O10: 1
A13: C | B13: =B10+1 -> 3 | C13: BILL NO 3: CIRCUIT BREAKERS, SWITCHGEAR, DISTRIBUTION BOARD & ASSOCIATED EQUIPMENT | O13: 12
A16: D | B16: =B13+1 -> 4 | C16: BILL NO 4: CABLE TRENCHING | O16: 3
A19: E | B19: =B16+1 -> 5 | C19: BILL NO 5: CABLE RETICULATION | O19: 6
A22: F | B22: =B19+1 -> 6 | C22: BILL NO 6: WIREWAYS & ACCESSORIES | O22: 6
A25: G | B25: =B22+1 -> 7 | C25: BILL NO 7: WIRING | O25: 4
A28: H | B28: =B25+1 -> 8 | C28: BILL NO 8: LUMINAIRES | O28: 15
A31: I | B31: =B28+1 -> 9 | C31: BILL NO 9: LAMPS | O31: 9
A34: J | B34: =B31+1 -> 10 | C34: BILL NO 10: LUMINAIRE ACCESSORIES | O34: 4
A37: K | B37: =B34+1 -> 11 | C37: BILL NO 11: LIGHT SWITCHES | O37: 3
A40: L | B40: =B37+1 -> 12 | C40: BILL NO 12: POWERSKIRTING | O40: 1
A43: M | B43: =B40+1 -> 13 | C43: BILL NO 13: SWITCHED SOCKET OUTLETS, ENCLOSURES & ACCESSORIES | O43: 7
A46: N | B46: =B43+1 -> 14 | C46: BILL NO 14: GEYSER SPARES & ACCESSORIES | O46: 1
A49: O | B49: =B46+1 -> 15 | C49: BILL NO 15: HYDROBOIL | O49: 1
A52: P | B52: =B49+1 -> 16 | C52: BILL NO 16: FANS, DRYERS & ACCESSORIES | O52: 4
A55: Q | B55: =B52+1 -> 17 | C55: BILL NO 17: OCCUPANCY SENSORS | O55: 3
A58: R | B58: =B55+1 -> 18 | C58: BILL NO 18: LIGHTNING & SURGE PROTECTION | O58: 4
A61: S | B61: =B58+1 -> 19 | C61: BILL NO 19: SOLAR | O61: 5
B64: 20 | C64: BILL SUMMARY | O64: 1
B67: 21 | C67: BILL PAGE TOTAL | O67: 92

Sheet BILL01
P1: 170.00% | R1: 750%
B2: Item | C2: Description | K2: Unit | L2: Qty | M2: Supply & Deliver Rate | N2: Overheads | O2: Amount
C4: ELECTRICAL WORKS
A5: A | C5: BILL OF QUANTITIES: BILL NO 1 OF 19
C7: ARTISAN
C8: The artisans and technical persons as described below and
C9: registered in terms of the Department of Labour, Engineering
C10: Council of South Africa.
C11: Labour rates for work not covered by any scheduled rates:
C12: Labour rates for normal working hours to include transport costs:
C14: LABOUR RATES
C15: (NORMAL WORKING HOURS - 07:00-16:00)
A17: A | B17: 1 | C17: Professional Technician or higher (Engineering Council of South Africa) | K17: hrs | L17: =$R$1*100 -> 750
A18: A | B18: =B17+1 -> 2 | C18: Master Registered Electrician (Registered with Department of Labour) | K18: hrs | L18: =$R$1*50 -> 375
A19: A | B19: =B18+1 -> 3 | C19: Registered Installation Electrician (Wiremans License) | K19: hrs | L19: =$R$1*100 -> 750
A20: A | B20: =B19+1 -> 4 | C20: Electrical Trade Test Artisan | K20: hrs | L20: =$R$1*200 -> 1500
A21: A | B21: =B20+1 -> 5 | C21: Electrical Artisan Assistant | K21: hrs | L21: =$R$1*200 -> 1500
A22: A | B22: =B21+1 -> 6 | C22: General Labour Assistant | K22: hrs | L22: =$R$1*400 -> 3000
A23: A | B23: 7 | C23: Administration Clerk | K23: hrs | L23: =$R$1*400 -> 3000
A24: A | B24: 8 | C24: Traveling expenses | K24: km | L24: 1
C25: LABOUR RATES FOR AFTER HOURS WORK
C27: LABOUR RATES
C28: (AFTER NORMAL WORKING HOURS – 16:00-07:00. INCLUDING WEEKENDS AND PUBLIC HOLIDAYS)
A30: A | B30: =B24+1 -> 9 | C30: Professional Technician (Engineering Council of South Africa) | K30: hrs | L30: =$R$1*30 -> 225
A31: A | B31: =B30+1 -> 10 | C31: Master Registered Electrician | K31: hrs | L31: =$R$1*20 -> 150
A32: A | B32: =B31+1 -> 11 | C32: Registered Installation Electrician (Wiremans License) | K32: hrs | L32: =$R$1*30 -> 225
A33: A | B33: =B32+1 -> 12 | C33: Electrical Trade Test Artisan | K33: hrs | L33: =$R$1*40 -> 300
A34: A | B34: =B33+1 -> 13 | C34: Electrical Artisan Assistant | K34: hrs | L34: =$R$1*40 -> 300
A35: A | B35: =B34+1 -> 14 | C35: General Labour Assistant | K35: hrs | L35: =$R$1*80 -> 600
C41: TOTAL CARRIED TO BILL SUMMARY Page 92

Sheet BILL02
Q1: 100.00% | R1: 750%
B2: Item | C2: Description | K2: Unit | L2: Qty | M2: Supply & Deliver Rate | N2: Install Rate | O2: Overheads | P2: Amount
C4: ELECTRICAL WORKS
A5: B | C5: BILL OF QUANTITIES: BILL NO 2 OF 19
C7: CERTIFICATE OF COMPLIANCE
C8: Allow for the tesing, commissioning and issuing of the
C9: Electrical Compliance Certificate in terms of SANS10142:
C10: Wiring Code, latest revision and to be completed by the
C11: recognised person in terms of the Wiring Code and Department
C12: of Labour.
A14: B | B14: 1 | C14: Single phase Distribution Board: CoC | K14: No | L14: =$R$1*40 -> 300
A15: B | B15: =B14+1 -> 2 | C15: Three phase Distribution Board: CoC | K15: No | L15: =$R$1*50 -> 375
A16: B | B16: =B15+1 -> 3 | C16: Infra-Red Testing | K16: per day | L16: 1
A17: B | B17: =B16+1 -> 4 | C17: Testing and fault finding on low voltage(600/1000V) grade
C18: cables using specilist equitment. (Using a cable fault locator) | K18: per cable | L18: 1
A19: B | B19: 5 | C19: Electrical Warning/Danger Signage including labelling of (Distribution Board) and all the circuits. | K19: No | L19: =$R$1*20 -> 150
A20: B | B20: 6 | C20: Power Load logging, analysis and report on a 230/400V system up
C21: to 3000A (Low voltage substation and distribution board) | K21: per day | L21: 1
C31: TOTAL CARRIED TO BILL SUMMARY Page 92

Sheet BILL03
P1: 107.70% | R1: 1000%
B2: Item | C2: Description | K2: Unit | L2: Qty | M2: Supply & Deliver Rate | N2: Install Rate | O2: Amount
C4: ELECTRICAL WORKS
A5: C | C5: BILL OF QUANTITIES: BILL NO 3 OF 19
C7: CIRCUIT BREAKERS, SWITCHGEAR,
C8: DISTRIBUTION BOARD & ASSOCIATED EQUIPMENT
C10: CIRCUIT BREAKERS
C11: MINIATURE CIRCUIT BREAKERS(MCB)
C12: Supply, deliver and install miniature circuit breakers in accordance
C13: with SANS 156. Approved by SABS.
C14: The circuit breakers are to be fitted into existing or new
C15: distribution boards.
C17: 3KA, CURVE 3(STANDARD) HYDRAULIC MAGNETIC TYPE
C18: SINGLE PHASE, 240V, 50Hz
C19: CBI or equal approved
A20: C | B20: 1 | C20: 5A, Single Pole | K20: No | L20: =$R$1*5 -> 50
A21: C | B21: =B20+1 -> 2 | C21: 10A to 20A, Single Pole | K21: No | L21: =$R$1*5 -> 50
A22: C | B22: 3 | C22: 25A to 40A, Single Pole | K22: No | L22: =$R$1*5 -> 50
A23: C | B23: 4 | C23: 45A to 60A, Single Pole | K23: No | L23: 50
A24: C | B24: 5 | C24: 5A to 20A, Double Pole | K24: No | L24: 50
A25: C | B25: 6 | C25: 25A to 50A, Double Pole | K25: No | L25: 50
A26: C | B26: 7 | C26: 60A, Double Pole | K26: No | L26: 50
C28: Merlin Gerin or equal approved
A29: C | B29: =B26+1 -> 8 | C29: 5A, Single Pole | K29: No | L29: 50
A30: C | B30: =B29+1 -> 9 | C30: 10A to 20A, Single Pole | K30: No | L30: 50
A31: C | B31: 10 | C31: 25A to 40A, Single Pole | K31: No | L31: 50
A32: C | B32: 11 | C32: 45A to 60A, Single Pole | K32: No | L32: 50
A33: C | B33: 12 | C33: 5A to 20A, Double Pole | K33: No | L33: 50
A34: C | B34: 13 | C34: 25A to 50A, Double Pole | K34: No | L34: 50
A35: C | B35: 14 | C35: 60A, Double Pole | K35: No | L35: 50
C39: Carried to Collection Page 14
B40: Item | C40: Description | K40: Unit | L40: Qty | M40: Supply & Deliver Rate | N40: Install Rate | O40: Amount
C41: 3KA, CURVE 3(STANDARD) HYDRAULIC MAGNETIC TYPE
C42: THREE PHASE, 400V, 50Hz
C43: CBI or equal approved
A44: C | B44: =B35+1 -> 15 | C44: 5A, Triple Pole | K44: No | L44: =$R$1*5 -> 50
A45: C | B45: =B44+1 -> 16 | C45: 10A to 20A, Triple Pole | K45: No | L45: 50
A46: C | B46: =B45+1 -> 17 | C46: 25A to 40A, Triple Pole | K46: No | L46: 50
A47: C | B47: =B46+1 -> 18 | C47: 45A to 60A, Triple Pole | K47: No | L47: 50
C49: Merlin Gerin or equal approved
A50: C | B50: =B47+1 -> 19 | C50: 5A, Triple Pole | K50: No | L50: =$R$1*5 -> 50
A51: C | B51: =B50+1 -> 20 | C51: 10A to 20A, Triple Pole | K51: No | L51: 50
A52: C | B52: =B51+1 -> 21 | C52: 25A to 40A, Triple Pole | K52: No | L52: 50
A53: C | B53: =B52+1 -> 22 | C53: 45A to 60A, Triple Pole | K53: No | L53: 50
C56: 6KA, CURVE 2(STANDARD) HYDRAULIC MAGNETIC TYPE
C57: SINGLE PHASE, 240V, 50Hz
C58: CBI or equal approved
A59: C | B59: =B53+1 -> 23 | C59: 5A, Single Pole | K59: No | L59: =$R$1*5 -> 50
A60: C | B60: =B59+1 -> 24 | C60: 10A to 20A, Single Pole | K60: No | L60: 50
A61: C | B61: 25 | C61: 25A to 40A, Single Pole | K61: No | L61: 50
A62: C | B62: 26 | C62: 45A to 60A, Single Pole | K62: No | L62: 50
A63: C | B63: 27 | C63: 5A to 20A, Double Pole | K63: No | L63: 50
A64: C | B64: 28 | C64: 25A to 50A, Double Pole | K64: No | L64: 50
A65: C | B65: 29 | C65: 60A, Double Pole | K65: No | L65: 50
C67: Merlin Gerin or equal approved
A68: C | B68: =B65+1 -> 30 | C68: 5A, Single Pole | K68: No | L68: =$R$1*5 -> 50
A69: C | B69: =B68+1 -> 31 | C69: 10A to 20A, Single Pole | K69: No | L69: 50
A70: C | B70: 32 | C70: 25A to 40A, Single Pole | K70: No | L70: 50
A71: C | B71: 33 | C71: 45A to 60A, Single Pole | K71: No | L71: 50
A72: C | B72: 34 | C72: 5A to 20A, Double Pole | K72: No | L72: 50
A73: C | B73: 35 | C73: 25A to 50A, Double Pole | K73: No | L73: 50
A74: C | B74: 36 | C74: 60A, Double Pole | K74: No | L74: 50
C76: Carried to Collection Page 14
B78: Item | C78: Description | K78: Unit | L78: Qty | M78: Supply & Deliver Rate | N78: Install Rate | O78: Amount
C79: 6KA, CURVE 2(STANDARD) HYDRAULIC MAGNETIC TYPE
C80: THREE PHASE, 400V, 50Hz
C81: CBI or equal approved
A82: C | B82: =B74+1 -> 37 | C82: 5A, Triple Pole | K82: No | L82: =$R$1*5 -> 50
A83: C | B83: =B82+1 -> 38 | C83: 10A to 20A, Triple Pole | K83: No | L83: 50
A84: C | B84: =B83+1 -> 39 | C84: 25A to 40A, Triple Pole | K84: No | L84: 50
A85: C | B85: =B84+1 -> 40 | C85: 45A to 60A, Triple Pole | K85: No | L85: 50
C86: Merlin Gerin or equal approved
A87: C | B87: =B85+1 -> 41 | C87: 5A, Triple Pole | K87: No | L87: =$R$1*5 -> 50
A88: C | B88: =B87+1 -> 42 | C88: 10A to 20A, Triple Pole | K88: No | L88: 50
A89: C | B89: =B88+1 -> 43 | C89: 25A to 40A, Triple Pole | K89: No | L89: 50
A90: C | B90: =B89+1 -> 44 | C90: 45A to 60A, Triple Pole | K90: No | L90: 50
C91: 6KA, CURVE 1 (MOTOR) THERMAL MAGNETIC TYPE
C92: SINGLE PHASE, 240V, 50Hz
C93: CBI or equal approved
A94: C | B94: =B90+1 -> 45 | C94: 6A to 20A, Single Pole | K94: No | L94: =$R$1*5 -> 50
A95: C | B95: =B94+1 -> 46 | C95: 25A to 32A, Single Pole | K95: No | L95: 50
A96: C | B96: =B95+1 -> 47 | C96: 35A to 63A, Single Pole | K96: No | L96: 50
A97: C | B97: =B96+1 -> 48 | C97: 6A to 20A, Double Pole | K97: No | L97: 50
A98: C | B98: =B97+1 -> 49 | C98: 25A to 40A, Double Pole | K98: No | L98: 50
A99: C | B99: =B98+1 -> 50 | C99: 50 to 63A, Double Pole | K99: No | L99: 50
C100: Merlin Gerin or equal approved
A101: C | B101: =B99+1 -> 51 | C101: 6A to 20A, Single Pole | K101: No | L101: =$R$1*5 -> 50
A102: C | B102: =B101+1 -> 52 | C102: 25A to 32A, Single Pole | K102: No | L102: 50
A103: C | B103: =B102+1 -> 53 | C103: 35A to 63A, Single Pole | K103: No | L103: 50
A104: C | B104: =B103+1 -> 54 | C104: 6A to 20A, Double Pole | K104: No | L104: 50
A105: C | B105: =B104+1 -> 55 | C105: 25A to 40A, Double Pole | K105: No | L105: 50
A106: C | B106: =B105+1 -> 56 | C106: 50 to 63A, Double Pole | K106: No | L106: 50
C107: 6KA, CURVE 1 (MOTOR) THERMAL MAGNETIC TYPE
C108: THREE PHASE, 400V, 50Hz
C109: CBI or equal approved
A110: C | B110: =B106+1 -> 57 | C110: 6A, Triple Pole | K110: No | L110: =$R$1*5 -> 50
A111: C | B111: =B110+1 -> 58 | C111: 10A to 20A, Triple Pole | K111: No | L111: 50
A112: C | B112: =B111+1 -> 59 | C112: 25A to 63A, Triple Pole | K112: No | L112: 50
A113: C | B113: =B112+1 -> 60 | C113: 6A to 20A, Triple Pole + Neutral | K113: No | L113: 50
C115: Carried to Collection Page 14
B117: Item | C117: Description | K117: Unit | L117: Qty | M117: Supply & Deliver Rate | N117: Install Rate | O117: Amount
A118: C | B118: =B113+1 -> 61 | C118: 25A to 40A, Triple Pole + Neutral | K118: No | L118: =$R$1*5 -> 50
A119: C | B119: =B118+1 -> 62 | C119: 50A to 63A, Triple Pole + Neutral | K119: No | L119: 50
C120: Merlin Gerin or equal approved
A121: C | B121: =B119+1 -> 63 | C121: 6A, Triple Pole | K121: No | L121: =$R$1*5 -> 50
A122: C | B122: =B121+1 -> 64 | C122: 10A to 20A, Triple Pole | K122: No | L122: 50
A123: C | B123: =B122+1 -> 65 | C123: 25A to 63A, Triple Pole | K123: No | L123: 50
A124: C | B124: =B123+1 -> 66 | C124: 6A to 20A, Triple Pole + Neutral | K124: No | L124: 50
A125: C | B125: =B124+1 -> 67 | C125: 25A to 40A, Triple Pole + Neutral | K125: No | L125: 50
A126: C | B126: =B125+1 -> 68 | C126: 50A to 63A, Triple Pole + Neutral | K126: No | L126: 50
C127: SWITCH DISCONNECTORS
C128: Supply, deliver and install switch disconnectors in
C129: accordance with SANS 156.
C130: The switch disconnectors are to be fitted into existing or new
C131: distribution boards.
C132: 3KA, DUAL MOUNT: HYDRAULIC MAGNETIC TYPE
C133: SINGLE PHASE, 240V, 50Hz
C134: CBI or equal approved
A135: C | B135: =B126+1 -> 69 | C135: 63A, Single Pole | K135: No | L135: =$R$1*5 -> 50
C136: Merlin Gerin or equal approved
A137: C | B137: =B135+1 -> 70 | C137: 63A, Single Pole | K137: No | L137: =$R$1*5 -> 50
C138: 6KA, DUAL MOUNT: HYDRAULIC MAGNETIC TYPE
C139: SINGLE PHASE, 240V, 50Hz
C140: CBI or equal approved
A141: C | B141: =B137+1 -> 71 | C141: 63A, Single Pole | K141: No | L141: =$R$1*5 -> 50
A142: C | B142: =B141+1 -> 72 | C142: 100A, Single Pole | K142: No | L142: 50
C143: Merlin Gerin or equal approved
A144: C | B144: =B142+1 -> 73 | C144: 63A, Single Pole | K144: No | L144: =$R$1*5 -> 50
A145: C | B145: =B144+1 -> 74 | C145: 100A, Single Pole | K145: No | L145: 50
C146: 3KA, DUAL MOUNT: HYDRAULIC MAGNETIC TYPE
C147: THREE PHASE, 400V, 50Hz
C148: CBI or equal approved
A149: C | B149: =B145+1 -> 75 | C149: 63A, Four Pole | K149: No | L149: =$R$1*5 -> 50
C150: Merlin Gerin or equal approved
A151: C | B151: =B149+1 -> 76 | C151: 63A, Four Pole | K151: No | L151: =$R$1*5 -> 50
C153: Carried to Collection Page 14
B154: Item | C154: Description | K154: Unit | L154: Qty | M154: Supply & Deliver Rate | N154: Install Rate | O154: Amount
C155: 6KA, DUAL MOUNT: HYDRAULIC MAGNETIC TYPE
C156: THREE PHASE, 400V, 50Hz
C157: CBI or equal approved
A158: C | B158: =B151+1 -> 77 | C158: 63A, Four Pole | K158: No | L158: =$R$1*5 -> 50
A159: C | B159: =B158+1 -> 78 | C159: 100A, Four Pole | K159: No | L159: 50
C160: Merlin Gerin or equal approved
A161: C | B161: =B159+1 -> 79 | C161: 63A, Four Pole | K161: No | L161: =$R$1*5 -> 50
A162: C | B162: =B161+1 -> 80 | C162: 100A, Four Pole | K162: No | L162: 50
C163: SWITCH DISCONNECTORS
C164: Supply, deliver and install switch disconnectors in
C165: accordance with IEC 60947-3.
C166: The switch disconnectors are to be surface mounted and shall
C167: be complete with all extension boxes, enclosures, fittings, fixtures
C168: and accessories required for the works.
C169: Padlockable in OFF position. IP55 rating
C170: The switch disconnectors shall be as per Waco: Era: E Series or
C171: equal approved
A172: C | B172: =B162+1 -> 81 | C172: 20A Double Pole Isolator | K172: No | L172: =$R$1*5 -> 50
A173: C | B173: =B172+1 -> 82 | C173: 25A Double Pole Isolator | K173: No | L173: 50
A174: C | B174: 83 | C174: 32A Double Pole Isolator | K174: No | L174: 50
A175: C | B175: 84 | C175: 45A Double Pole Isolator | K175: No | L175: 50
A176: C | B176: =B175+1 -> 85 | C176: 63A Double Pole Isolator | K176: No | L176: 50
A177: C | B177: 86 | C177: 100A Double Pole Isolator | K177: No | L177: 50
A179: C | B179: 87 | C179: 20A Three Pole + N, Isolator | K179: No | L179: =$R$1*5 -> 50
A180: C | B180: 88 | C180: 25A Three Pole + N, Isolator | K180: No | L180: 50
A181: C | B181: 89 | C181: 32A Three Pole + N, Isolator | K181: No | L181: 50
A182: C | B182: 90 | C182: 45A Three Pole + N, Isolator | K182: No | L182: 50
A183: C | B183: 91 | C183: 63A Three Pole + N, Isolator | K183: No | L183: 50
A184: C | B184: 92 | C184: 100A Three Pole + N, Isolator | K184: No | L184: 50
A186: C | B186: 93 | C186: 20A Four Pole Isolator | K186: No | L186: =$R$1*5 -> 50
A187: C | B187: 94 | C187: 25A Four Pole Isolator | K187: No | L187: 50
A188: C | B188: 95 | C188: 32A Four Pole Isolator | K188: No | L188: 50
A189: C | B189: 96 | C189: 45A Four Pole Isolator | K189: No | L189: 50
A190: C | B190: 97 | C190: 63A Four Pole Isolator | K190: No | L190: 50
A191: C | B191: 98 | C191: 100A Four Pole Isolator | K191: No | L191: 50
C192: Automatic Changeover Swtiches
C193: 4 pole motorised change over switches to have failsafe machanical
C194: interlock, Padlockable in the OFF position, Fully independent position
C195: auxiliary contacts one for each position ( I / O / II ) and Wide-band AC
C196: control voltage ± 20%. All sundries to be included. Socomec or equally
C197: approved. (Installation to comply with all warranties and guarantees costs)
A198: C | B198: =B191+1 -> 99 | C198: 1000A | K198: ea | L198: =$R$1*1 -> 10
A199: C | B199: =B198+1 -> 100 | C199: 1600A | K199: ea | L199: =$R$1*1 -> 10
A200: C | B200: =B199+1 -> 101 | C200: 2500A | K200: ea | L200: 10
A201: C | B201: =B200+1 -> 102 | C201: 3200A | K201: ea | L201: 10
C202: Carried to Collection Page 14
B203: Item | C203: Description | K203: Unit | L203: Qty | M203: Supply & Deliver Rate | N203: Install Rate | O203: Amount
C205: MOLDED CASE CIRCUIT BREAKERS
C206: Supply, deliver and install molded case circuit breakers in accordance
C207: with SANS 156. Approved by SABS. The circuit breakers are to
C208: be fitted into existing or new distribution panels.
C209: To Include all mounting fixtures and bus bar tails to fit into exising or new
C210: LV panel. Molded case circuit breakers to be CBI or equally approved
A212: C | B212: =B201+1 -> 103 | C212: 75A - 125A, 3 pole, 37kA at 400V | L212: =$R$1*1 -> 10
A213: C | B213: =B212+1 -> 104 | C213: 150A, 3 pole, 37kA at 400V | L213: 10
A214: C | B214: =B213+1 -> 105 | C214: 175A - 225A, 3 pole, 37kA at 400V | L214: 10
A215: C | B215: =B214+1 -> 106 | C215: 250A, 3 pole, 37kA at 400V | L215: 10
A216: C | B216: =B215+1 -> 107 | C216: 250A, 3 pole, 50kA at 400V | L216: 10
A217: C | B217: 108 | C217: 300A - 400A, 3 pole, 50kA at 400V | L217: 10
A218: C | B218: 109 | C218: 500A and 630A, 3 pole, 65kA at 400V | L218: 10
A219: C | B219: 110 | C219: 700A and 800A, 3 pole, 65kA at 400V | L219: 10
A220: C | B220: 111 | C220: 1000A, 3 pole, 65kA at 400V | L220: 10
A221: C | B221: 112 | C221: 1200A, 3 pole, 65kA at 400V | L221: 10
... 227 more rows

Sheet BILL04
P1: 107.70% | R1: 1000% | V1: 150.00%
B2: Item | C2: Description | K2: Unit | L2: Qty | M2: Supply & Deliver Rate | N2: Install Rate | O2: Amount
C4: ELECTRICAL WORKS
A5: D | C5: BILL OF QUANTITIES: BILL NO 4 OF 19
C7: CABLE TRENCHING
C8: EXCAVATIONS: TRENCHING & BACKFILLING
C9: All prices below shall include the excavation of trenches and holes,
C10: separating of stones, ground and rock, leveling of trench bed,
C11: refill compacting and reparation of all surfaces to their original
C12: finish.
C13: Trenching shall be calculated using the formula below:
C14: (1m3 = a trench of 600mm deep * 420mm wide * 4m length)
C15: (1m3 = 4m linear of trenching)
A16: D | B16: 1 | C16: Excavate and backfilling in soft ground(pickable material) | K16: m³ | L16: =$R$1*50 -> 500
A17: D | B17: =B16+1 -> 2 | C17: Excavate and backfilling in soft rock | K17: m³ | L17: =$R$1*50 -> 500
A18: D | B18: =B17+1 -> 3 | C18: Excavate and backfilling in hard rock | K18: m³ | L18: =$R$1*50 -> 500
A19: D | B19: =B18+1 -> 4 | C19: Excavating for cable road crossing and placing 4 x
C20: 110m sleeves across road way. | K20: m³ | L20: =$R$1*50 -> 500
A21: D | B21: =B19+1 -> 5 | C21: Backfilling road crossing and reinstating road
C22: surface and compaction as before. | K22: m³ | L22: =$R$1*50 -> 500
A23: D | B23: =B21+1 -> 6 | C23: Provide sand or stone-free ground complete with handling cost | K23: m³ | L23: =$R$1*50 -> 500
A24: D | B24: =B23+1 -> 7 | C24: Compaction of all electrical and telecoms sleeve trenches
C25: under hardended surfaces to 95% MOD AASHTO | K25: m³ | L25: =$R$1*50 -> 500
A26: D | B26: =B24+1 -> 8 | C26: Remove all waste material complete with handling cost | K26: m³ | L26: 50
C28: CABLE MARKERS
A29: D | B29: =B26+1 -> 9 | C29: Electrical reinforced concrete cable route marker with inscription as per
C30: engineers detail. Dimension: Height: 265mm, Depth: 750mm,
C31: Weight: 19.5kg | K31: No | L31: =$R$1*5 -> 50
C38: Carried to Collection Page 17
B39: Item | C39: Description | K39: Unit | L39: Qty | M39: Supply & Deliver Rate | N39: Install Rate | O39: Amount
A41: D | B41: 10 | C41: Electrical concrete cable route marker with inscription as per
C42: engineers detail. Dimension: Height: 250mm, Width: 250mm,
C43: Depth: 250mm | K43: No | L43: =$R$1*5 -> 50
A44: D | B44: =B41+1 -> 11 | C44: Electrical concrete cable route marker with inscription as per
C45: engineers detail. Dimension: Height: 305mm, Width: 305mm,
C46: Depth: 152mm, including 101x76mm lead insert for inscription | K46: No | L46: =$R$1*5 -> 50
C48: CABLE DANGER TAPE
A50: D | B50: =B44+1 -> 12 | C50: Electrical buried danger tape in compliance with OSHA 1910.144
C51: for marking physical hazards.
C52: The tape shall be lightweight and of high visibility safety yellow
C53: polyethylene (plastic) with bold black letters(2 inch height).
C54: The tape shall be 76mm wide and 0.102mm thick.
C55: The cable warning/danger tape shall be placed 150mm
C56: above the cables in excavations. | K56: m | L56: =$R$1*1000 -> 10000
C57: MANHOLES
A59: D | B59: =B50+1 -> 13 | C59: Electrical manhole 1200x1200x790mm deep with 230mm
C60: brick surround, 150mm concrete base and complete with 6mm
C61: flush chequer plate and 150mm concrete base. As per
C62: Ethewini Electricity: Manhole specifications for cable circuits
C63: where there are hardened surfaces. Drawing: SS_Manholes | K63: Item | L63: =$R$1*5 -> 50
A65: D | B65: 14 | C65: Electrical manhole 1200x1200x790mm deep with 230mm
C66: brick surround, 150mm concrete base and complete with heavy
C67: duty polymer plate and 150mm concrete base. As per
C68: Ethewini Electricity: Manhole specifications for cable circuits
C69: where there are hardened surfaces. Drawing: SS_Manholes | K69: Item | L69: =$R$1*5 -> 50
C75: Carried to Collection Page 17EE
B76: Item | C76: Description | O76: Amount
C78: ELECTRICAL WORKS
C79: BILL OF QUANTITIES: BILL NO 4 OF 19
C80: COLLECTION
C82: CABLE TRENCHING
C84: Page 15
C85: Page 16
C101: CABLE TRENCHING
C102: TOTAL CARRIED TO BILL SUMMARY Page

Sheet BILL05
P1: 107.70% | R1: 1000%
B2: Item | C2: Description | K2: Unit | L2: Qty | M2: Supply & Deliver Rate | N2: Install Rate | O2: Amount
C4: ELECTRICAL WORKS
A5: E | C5: BILL OF QUANTITIES: BILL NO 5 OF 19
C6: CABLE RETICULATION
C8: LOW VOLTAGE CABLING
C9: Supply, deliver and install low voltage(600/1000V), PVC
C10: insulated, PVC bedded SWA, PVC sheathed, ECC stranded
C11: copper conductor cables.
C12: Checking of cable and overhead conductor lengths.
C13: The Contractor shall check such lengths on site before ordering
C14: the cable as he will not be paid for excess cable after the completion
C15: of the service. Any allowance for off-cuts shall be made in the unit
C16: rates. The final measurements shall be based on the net route length
C17: of cables and overhead lines concerned, installed in accordance
C18: with the requirements. However, the onus is on the Contractor to
C19: prove compliance with the specification.
C20: The cabling shall be installed either in excavations, cable trays,
C21: trunking, wireways, ground, sleeves, ducts, etc(measured
C22: elsewhere) and shall include all necessary fittings, fixtures and
C23: accessories required for the works.
C24: The cables shall be as per Abedare Cables or equal approved.
C26: TWO CORE
A27: E | B27: 1 | C27: 1.5mm2 | K27: m | L27: =$R$1*200 -> 2000
A28: E | B28: =B27+1 -> 2 | C28: 2.5mm2 | K28: m | L28: =$R$1*200 -> 2000
A29: E | B29: 3 | C29: 4mm2 | K29: m | L29: =$R$1*50 -> 500
A30: E | B30: 4 | C30: 6mm2 | K30: m | L30: =$R$1*30 -> 300
A31: E | B31: 5 | C31: 10mm2 | K31: m | L31: =$R$1*30 -> 300
A32: E | B32: 6 | C32: 16mm2 | K32: m | L32: =$R$1*30 -> 300
A33: E | B33: 7 | C33: 25mm2 | K33: m | L33: =$R$1*30 -> 300
C35: THREE CORE
A36: E | B36: =B33+1 -> 8 | C36: 1.5mm2 | K36: m | L36: =$R$1*200 -> 2000
A37: E | B37: =B36+1 -> 9 | C37: 2.5mm2 | K37: m | L37: =$R$1*200 -> 2000
A38: E | B38: 10 | C38: 4mm2 | K38: m | L38: =$R$1*50 -> 500
C40: Carried to Collection Page 23 EE
B41: Item | C41: Description | K41: Unit | L41: Qty | M41: Supply & Deliver Rate | N41: Install Rate | O41: Amount
A42: E | B42: =B38+1 -> 11 | C42: 6mm2 | K42: m | L42: =$R$1*30 -> 300
A43: E | B43: 12 | C43: 10mm2 | K43: m | L43: =$R$1*30 -> 300
A44: E | B44: 13 | C44: 16mm2 | K44: m | L44: =$R$1*30 -> 300
A45: E | B45: 14 | C45: 25mm2 | K45: m | L45: =$R$1*30 -> 300
C47: AIRDAC: THREE CORE
A48: E | B48: =B45+1 -> 15 | C48: 10mm2 | K48: m | L48: =$R$1*50 -> 500
A49: E | B49: =B48+1 -> 16 | C49: 16mm2 | K49: m | L49: 100
C51: FOUR CORE
A52: E | B52: =B49+1 -> 17 | C52: 1.5mm2 | K52: m | L52: =$R$1*200 -> 2000
A53: E | B53: =B52+1 -> 18 | C53: 2.5mm2 | K53: m | L53: =$R$1*200 -> 2000
A54: E | B54: 19 | C54: 4mm2 | K54: m | L54: =$R$1*50 -> 500
A55: E | B55: 20 | C55: 6mm2 | K55: m | L55: =$R$1*30 -> 300
A56: E | B56: 21 | C56: 10mm2 | K56: m | L56: 300
A57: E | B57: 22 | C57: 16mm2 | K57: m | L57: 300
A58: E | B58: 23 | C58: 25mm2 | K58: m | L58: 300
A59: E | B59: 24 | C59: 35mm2 | K59: m | L59: 300
A60: E | B60: 25 | C60: 50mm2 | K60: m | L60: 300
A61: E | B61: 26 | C61: 70mm2 | K61: m | L61: =$R$1*1 -> 10
A62: E | B62: 27 | C62: 95mm2 | K62: m | L62: =$R$1*1 -> 10
A63: E | B63: 28 | C63: 120mm2 | K63: m | L63: 10
A64: E | B64: 29 | C64: 150mm2 | K64: m | L64: 10
A65: E | B65: 30 | C65: 185mm2 | K65: m | L65: 10
C67: LOW VOLTAGE CABLE TERMINATIONS
C68: Supply, deliver and install low voltage(600/1000V), PVC
C69: insulated, PVC bedded SWA, PVC sheathed, ECC stranded
C70: copper conductor cable terminations.
C71: The terminations shall be for the referred cables specified and shall
C72: include for all shrouds, glands, lugs, connections, fittings, fixtures
C73: and accessories for the terminations in terms of the relevant
C74: SANS guidelines.
C76: TWO CORE
A77: E | B77: =B65+1 -> 31 | C77: 1.5mm2 | K77: No | L77: =$R$1*50 -> 500
A78: E | B78: =B77+1 -> 32 | C78: 2.5mm2 | K78: No | L78: =$R$1*50 -> 500
A79: E | B79: 33 | C79: 4mm2 | K79: No | L79: 500
A80: E | B80: 34 | C80: 6mm2 | K80: No | L80: 500
A81: E | B81: 35 | C81: 10mm2 | K81: No | L81: 100
C83: Carried to Collection Page 23 EE
B84: Item | C84: Description | K84: Unit | L84: Qty | M84: Supply & Deliver Rate | N84: Install Rate | O84: Amount
A85: E | B85: =B81+1 -> 36 | C85: 16mm2 | K85: No | L85: =$R$1*200 -> 2000
A86: E | B86: 37 | C86: 25mm2 | K86: No | L86: =$R$1*50 -> 500
C88: THREE CORE
A89: E | B89: =B86+1 -> 38 | C89: 1.5mm2 | K89: No | L89: =$R$1*50 -> 500
A90: E | B90: =B89+1 -> 39 | C90: 2.5mm2 | K90: No | L90: 500
A91: E | B91: 40 | C91: 4mm2 | K91: No | L91: 500
A92: E | B92: 41 | C92: 6mm2 | K92: No | L92: 500
A93: E | B93: 42 | C93: 10mm2 | K93: No | L93: 500
A94: E | B94: 43 | C94: 16mm2 | K94: No | L94: 500
A95: E | B95: 44 | C95: 25mm2 | K95: No | L95: 20
C97: AIRDAC: THREE CORE
A98: E | B98: =B95+1 -> 45 | C98: 10mm2 | K98: No | L98: =$R$1*50 -> 500
A99: E | B99: =B98+1 -> 46 | C99: 16mm2 | K99: No | L99: 500
C101: FOUR CORE
A102: E | B102: =B99+1 -> 47 | C102: 1.5mm2 | K102: No | L102: =$R$1*30 -> 300
A103: E | B103: =B102+1 -> 48 | C103: 2.5mm2 | K103: No | L103: =$R$1*30 -> 300
A104: E | B104: 49 | C104: 4mm2 | K104: No | L104: =$R$1*30 -> 300
A105: E | B105: 50 | C105: 6mm2 | K105: No | L105: =$R$1*30 -> 300
A106: E | B106: 51 | C106: 10mm2 | K106: No | L106: 200
A107: E | B107: 52 | C107: 16mm2 | K107: No | L107: 200
A108: E | B108: 53 | C108: 25mm2 | K108: No | L108: =$R$1*20 -> 200
A109: E | B109: 54 | C109: 35mm2 | K109: No | L109: =$R$1*10 -> 100
A110: E | B110: 55 | C110: 50mm2 | K110: No | L110: =$R$1*10 -> 100
A111: E | B111: 56 | C111: 70mm2 | K111: No | L111: 100
A112: E | B112: 57 | C112: 95mm2 | K112: No | L112: =$R$1*1 -> 10
A113: E | B113: 58 | C113: 120mm2 | K113: No | L113: 10
A114: E | B114: 59 | C114: 150mm2 | K114: No | L114: 10
A115: E | B115: 60 | C115: 185mm2 | K115: No | L115: 10
C117: Aerial Bundle Conductor (ABC) Cable
C118: Supply, deliver and install low voltage (600/1000V), XLPE
C119: insulated, self supporting copper conductor cable.
C120: The terminations shall be for the referred cables specified and shall
C121: include for all shrouds, glands, lugs, connections, fittings, fixtures
C122: and accessories for the terminations in terms of SANS 1418
C123: part 1 and part 2
C124: The cables shall be as per Abedare Cables or equal approved.
A125: E | B125: =B115+1 -> 61 | C125: 25mm2 | K125: m | L125: =$R$1*10 -> 100
A126: E | B126: =B125+1 -> 62 | C126: 35mm2 | K126: m | L126: 100
A127: E | B127: =B126+1 -> 63 | C127: 50mm2 | K127: m | L127: 100
A128: E | B128: =B127+1 -> 64 | C128: 70mm2 | K128: m | L128: 100
A129: E | B129: =B128+1 -> 65 | C129: 95mm2 | K129: m | L129: 100
C138: Carried to Collection Page 23 EE
B139: Item | C139: Description | K139: Unit | L139: Qty | M139: Supply & Deliver Rate | N139: Install Rate | O139: Amount
C141: LOW VOLTAGE CABLE JOINT KITS
C142: Supply, deliver and install epoxy resin joint kits for low voltage
C143: (600/1000V) copper insulated, PVC bedded SWA, PVC sheathed,
C144: ECC stranded copper conductor cables.
C145: The cable joint kits shall be complete with all necessary fittings,
C146: fixtures and accessories required for the works.
C147: The cable kit shall be IEC/SANS approved.
C148: The cable kit shall be as per 3M Scotchcast or equal approved
C149: SIZES
A151: E | B151: =B129+1 -> 66 | C151: 4mm2 to 10mm2 | K151: No | L151: =$R$1*10 -> 100
A152: E | B152: =B151+1 -> 67 | C152: 10mm2 to 16mm2 | K152: No | L152: 100
A153: E | B153: 68 | C153: 16mm2 to 35mm2 | K153: No | L153: =$R$1*1 -> 10
A154: E | B154: 69 | C154: 35mm2 to 50mm2 | K154: No | L154: 10
A155: E | B155: 70 | C155: 50mm2 to 95mm2 | K155: No | L155: 10
A156: E | B156: 71 | C156: 120mm2 to 150mm2 | K156: No | L156: 10
A157: E | B157: 72 | C157: 150mm2 to 240mm2 | K157: No | L157: 10
C159: JUNCTION BOXES: NORMAL APPLICATIONS
C160: Supply, deliver and install junction boxes:normal applications
C161: for low voltage(600/1000V), PVC/SWA/PVC copper cables.
C162: The junction boxes shall be complete with all necessary, fittings,
C163: fixtures, compression glands, connectors, clamps, blanking plugs,
C164: accessories, etc to complete the works.
C165: The junction boxes shall be as Pratley or equal approved.
A166: E | B166: =B157+1 -> 73 | C166: Enviro Junction box - Rectangular standard hinged cover | K166: No | L166: =$R$1*1 -> 10
A167: E | B167: =B166+1 -> 74 | C167: Bottom entry Junction box - standard - for armoured or
C168: unarmoured cable. Size 1 - Polycarbonate lid | K168: No | L168: =$R$1*1 -> 10
A169: E | B169: =B167+1 -> 75 | C169: Bottom entry Junction box - standard - for armoured or
C170: unarmoured cable. Size 2 - Polycarbonate lid | K170: No | L170: =$R$1*1 -> 10
A171: E | B171: =B169+1 -> 76 | C171: Encono Junction box - No 1 | K171: No | L171: 10
A172: E | B172: =B171+1 -> 77 | C172: Eeze fit - Instrumentation - Junction Box - 0 - standard
C173: for unarmoured cable. Polycarbonate lid | K173: No | L173: =$R$1*1 -> 10
A174: E | B174: =B172+1 -> 78 | C174: Klik-Lok Junction Box (Standard) - for unarmoured or
C175: armoured cable. Polycarbonate lid | K175: No | L175: =$R$1*1 -> 10
A176: E | B176: =B174+1 -> 79 | C176: Zed Junction box - No 0 | K176: No | L176: 10
C182: Carried to Collection Page 23
B183: Item | C183: Description | K183: Unit | L183: Qty | M183: Supply & Deliver Rate | N183: Install Rate | O183: Amount
C185: HIGH DENSITY POLYETHYLENE CABLE SLEEVES
C186: Supply, deliver and install underground HDPE cable sleeves
C187: for low voltage(600/1000V), PVC/SWA/PVC copper cables.
C188: The sleeve shall carry the SANS certification mark in respect of
C189: South African National Standard SANS 61386-24 : 2005
C190: (type N 450).
C191: The sleeves shall be complete with all necessary couplers, seals,
C192: plugs, rings, bell mouths, spacer modules, brushes, etc required
C193: to complete the works.
C194: The sleeve shall be as per Kabelflex or equal approved.
A195: E | B195: =B176+1 -> 80 | C195: 50mm diameter | K195: m | L195: =$R$1*1 -> 10
A196: E | B196: =B195+1 -> 81 | C196: 110mm diameter | K196: m | L196: =$R$1*1 -> 10
C224: Carried to Collection Page 23
B225: Item | C225: Description | O225: Amount
C227: ELECTRICAL WORKS
C228: BILL OF QUANTITIES: BILL NO 5 OF 19
C230: COLLECTION
C231: CABLE RETICULATION
C233: Page 18
C234: Page 19
C235: Page 20
C236: Page 21
C237: Page 22
C254: TOTAL CARRIED TO BILL SUMMARY Page 92 EE

Sheet BILL06
P1: 107.70% | R1: 1000%
B2: Item | C2: Description | K2: Unit | L2: Qty | M2: Supply & Deliver Rate | N2: Install Rate | O2: Amount
C3: ELECTRICAL WORKS
C4: BILL OF QUANTITIES: BILL NO 6 OF 19
C5: WIREWAYS & ACCESSORIES
A6: F | C6: PVC CONDUIT
C7: The supply and installation of PVC conduit, prices to include for
C8: couplings, saddles, adaptors, spacers, lids, conduit boxes and
C9: all bending, gluing and other necessary material.
C10: The conduit shall be installed in concrete, walls, ground,
C11: brickwork, roof spaces, against trusses, etc and shall include for
C12: all against trusses, etc and shall include for all necessary fittings,
C13: fixtures and accessories to complete the installation.
C14: The conduit shall comply to SANS 950.
C15: Chased into brickwork
A16: F | B16: 1 | C16: 20mm diameter | K16: m | L16: =$R$1*100 -> 1000
A17: F | B17: =B16+1 -> 2 | C17: 25mm diameter | K17: m | L17: =$R$1*100 -> 1000
A18: F | B18: =B17+1 -> 3 | C18: 32mm diameter | K18: m | L18: =$R$1*5 -> 50
A19: F | B19: =B18+1 -> 4 | C19: 50mm diameter | K19: m | L19: =$R$1*5 -> 50
C21: Chased into concrete
A22: F | B22: =B19+1 -> 5 | C22: 20mm diameter | K22: m | L22: =$R$1*100 -> 1000
A23: F | B23: =B22+1 -> 6 | C23: 25mm diameter | K23: m | L23: 1000
A24: F | B24: =B23+1 -> 7 | C24: 32mm diameter | K24: m | L24: =$R$1*5 -> 50
A25: F | B25: =B24+1 -> 8 | C25: 50mm diameter | K25: m | L25: 50
C27: Cast into concrete
A28: F | B28: =B25+1 -> 9 | C28: 20mm diameter | K28: m | L28: 50
A29: F | B29: =B28+1 -> 10 | C29: 25mm diameter | K29: m | L29: 50
A30: F | B30: =B29+1 -> 11 | C30: 32mm diameter | K30: m | L30: =$R$1*5 -> 50
A31: F | B31: =B30+1 -> 12 | C31: 50mm diameter | K31: m | L31: 50
A32: F | B32: =B31+1 -> 13 | C32: 100mm diameter sleeve | K32: m | L32: 50
C34: Fixed on surface
A35: F | B35: =B32+1 -> 14 | C35: 20mm diameter | K35: m | L35: 300
A36: F | B36: =B35+1 -> 15 | C36: 25mm diameter | K36: m | L36: 200
A37: F | B37: =B36+1 -> 16 | C37: 32mm diameter | K37: m | L37: 10
A38: F | B38: =B37+1 -> 17 | C38: 50mm diameter | K38: m | L38: 10
C40: Carried to Collection Page 29 EE
B41: Item | C41: Description | K41: Unit | L41: Qty | M41: Supply & Deliver Rate | N41: Install Rate | O41: Amount
C42: GALVANISED STEEL CONDUIT: BOSAL
C43: The supply and installation of galvanised steel conduit, prices
C44: to include for couplings, saddles, adaptors, spacers, lids, conduit
C45: boxes and all bending, gluing and other necessary material.
C46: The conduit shall be installed in concrete, walls, ground,
C47: brickwork, roof spaces, against trusses, etc and shall include for all
C48: against trusses, etc and shall include for all necessary fittings,
C49: fixtures and accessories to complete the installation.
C50: The conduit shall comply to SANS 1065 Parts 1 & 2.
C51: Fixed on surface
A52: F | B52: =B38+1 -> 18 | C52: 20mm diameter | K52: m | L52: =$R$1*50 -> 500
A53: F | B53: =B52+1 -> 19 | C53: 25mm diameter | K53: m | L53: =$R$1*50 -> 500
A54: F | B54: =B53+1 -> 20 | C54: 32mm diameter | K54: m | L54: 10
A55: F | B55: =B54+1 -> 21 | C55: 50mm diameter | K55: m | L55: 10
C57: CONDUIT ACCESSORIES
C58: The supply and installation of conduit accessories for PVC
C59: and galvanised steel conduit(Bosal).
C60: The conduit accessories shall be fitted as per installation
C61: details for the conduit.
C62: The accessories shall be complete with all screws, adaptors, etc
C63: required to complete the installation.
C64: The conduit accessories shall comply to SANS 950.
C66: EXTENSION BOXES
C67: All extension boxes shall be of the galvanised steel type and
C68: shall be of 1mm thickness. The boxes shall be suitable for
C69: standard switches(lights and plugs) application.
C70: The boxes shall be in accordance with SANS 1085 and the
C71: plates with SANS 1084
A72: F | B72: =B55+1 -> 22 | C72: 100 x 100 x 50mm | K72: No | L72: =$R$1*100 -> 1000
A73: F | B73: =B72+1 -> 23 | C73: 100 x 50 x 50mm | K73: No | L73: 1000
A74: F | B74: =B73+1 -> 24 | C74: 100 x 100 x 75mm(back to back) | K74: No | L74: =$R$1*50 -> 500
A75: F | B75: =B74+1 -> 25 | C75: 100 x 50 x 75mm(back to back) | K75: No | L75: 500
C77: PVC: CONDUIT BOXES
A78: F | B78: =B75+1 -> 26 | C78: One Way | K78: No | L78: 100
A79: F | B79: =B78+1 -> 27 | C79: Two Way | K79: No | L79: 100
A80: F | B80: =B79+1 -> 28 | C80: Three Way | K80: No | L80: =$R$1*50 -> 500
A81: F | B81: =B80+1 -> 29 | C81: Four Way | K81: No | L81: 500
C83: Carried to Collection Page 29 EE
B84: Item | C84: Description | K84: Unit | L84: Qty | M84: Supply & Deliver Rate | N84: Install Rate | O84: Amount
C85: FLEXIBLE CONDUIT
C86: The supply and installation of flexible conduit accessories for PVC
C87: and galvanised steel conduit(Bosal). The flexible conduit shall be
C88: complete with all necessary connectors, fittings, fixtures and
C89: accessories required for the complete works.
C90: The flexible conduit shall comply to SANS 950, SANS 1065
C91: PVC: FLEXIBLE CONDUIT (SPRAGUE)
A92: F | B92: =B81+1 -> 30 | C92: 20mm diameter | K92: m | L92: =$R$1*15 -> 150
A93: F | B93: =B92+1 -> 31 | C93: 25mm diameter | K93: m | L93: =$R$1*15 -> 150
A94: F | B94: =B93+1 -> 32 | C94: 32mm diameter | K94: m | L94: 150
A95: F | B95: =B94+1 -> 33 | C95: 50mm diameter | K95: m | L95: 150
A96: F | B96: =B95+1 -> 34 | C96: 75mm diameter | K96: m | L96: 150
C98: GALVANISED STEEL: FLEXIBLE CONDUIT (SPRAGUE)
A99: F | B99: =B96+1 -> 35 | C99: 20mm diameter | K99: m | L99: =$R$1*15 -> 150
A100: F | B100: =B99+1 -> 36 | C100: 25mm diameter | K100: m | L100: 150
A101: F | B101: =B100+1 -> 37 | C101: 32mm diameter | K101: m | L101: 150
A102: F | B102: =B101+1 -> 38 | C102: 50mm diameter | K102: m | L102: 150
A103: F | B103: =B102+1 -> 39 | C103: 75mm diameter | K103: m | L103: 150
C105: GENERAL
C106: The conduit accessories listed below shall be utilised for existing
C107: installations. It shall be complete with all necessary screws, fittings,
C108: fixtures and accessories to complete the works.
C109: PVC SADDLES
A110: F | B110: =B103+1 -> 40 | C110: 20mm diameter | K110: No | L110: =$R$1*100 -> 1000
A111: F | B111: =B110+1 -> 41 | C111: 25mm diameter | K111: No | L111: 1000
A112: F | B112: =B111+1 -> 42 | C112: 32mm diameter | K112: No | L112: 1000
A113: F | B113: =B112+1 -> 43 | C113: 50mm diameter | K113: No | L113: 1000
C115: PVC HOSPITAL SADDLES
A116: F | B116: =B113+1 -> 44 | C116: 20mm diameter | K116: No | L116: =$R$1*100 -> 1000
A117: F | B117: =B116+1 -> 45 | C117: 25mm diameter | K117: No | L117: 1000
A118: F | B118: =B117+1 -> 46 | C118: 32mm diameter | K118: No | L118: 1000
A119: F | B119: =B118+1 -> 47 | C119: 50mm diameter | K119: No | L119: 1000
C121: BOSAL SADDLES
A122: F | B122: =B119+1 -> 48 | C122: 20mm diameter | K122: No | L122: =$R$1*100 -> 1000
A123: F | B123: =B122+1 -> 49 | C123: 25mm diameter | K123: No | L123: 1000
A124: F | B124: =B123+1 -> 50 | C124: 32mm diameter | K124: No | L124: 1000
A125: F | B125: =B124+1 -> 51 | C125: 40mm diameter | K125: No | L125: 1000
C127: Carried to Collection Page 29 EE
B128: Item | C128: Description | K128: Unit | L128: Qty | M128: Supply & Deliver Rate | N128: Install Rate | O128: Amount
C129: BOSAL HOSPITAL SADDLES
A130: F | B130: =B125+1 -> 52 | C130: 20mm diameter | K130: No | L130: =$R$1*100 -> 1000
A131: F | B131: =B130+1 -> 53 | C131: 25mm diameter | K131: No | L131: 1000
A132: F | B132: =B131+1 -> 54 | C132: 32mm diameter | K132: No | L132: 1000
A133: F | B133: =B132+1 -> 55 | C133: 50mm diameter | K133: No | L133: 1000
C135: PVC COUPLINGS
A136: F | B136: =B133+1 -> 56 | C136: 20mm diameter | K136: No | L136: =$R$1*100 -> 1000
A137: F | B137: =B136+1 -> 57 | C137: 25mm diameter | K137: No | L137: 1000
A138: F | B138: =B137+1 -> 58 | C138: 32mm diameter | K138: No | L138: 1000
A139: F | B139: =B138+1 -> 59 | C139: 50mm diameter | K139: No | L139: 1000
C141: BOSAL COUPLINGS
A142: F | B142: =B139+1 -> 60 | C142: 20mm diameter | K142: No | L142: =$R$1*100 -> 1000
A143: F | B143: =B142+1 -> 61 | C143: 25mm diameter | K143: No | L143: 1000
A144: F | B144: =B143+1 -> 62 | C144: 32mm diameter | K144: No | L144: 1000
A145: F | B145: =B144+1 -> 63 | C145: 50mm diameter | K145: No | L145: 1000
C147: TRUNKING & WIRING DUCT
C148: PVC TRUNKING
C149: Supply and install PVC compact mini trunking complete with
C150: cover plates, tees, angles(internal, external and flat), bends,
C151: end caps and all necessary fittings fixtures and accessories
C152: required to complete the works.
C153: The trunking shall be installed surface on brickwork, slab, concrete,
C154: walls, ceilings, etc as required.
C155: The trunking shall be as Cabstrut or equal approved.
A156: F | B156: =B145+1 -> 64 | C156: YT/1: 16mm x 16mm | K156: m | L156: =$R$1*50 -> 500
A157: F | B157: =B156+1 -> 65 | C157: YT/2: 25mm x 16mm | K157: m | L157: 500
A158: F | B158: 66 | C158: YT/2.5: 25mm x 25mm | K158: m | L158: 500
A159: F | B159: 67 | C159: YT/3: 40mm x 16mm | K159: m | L159: 500
A160: F | B160: 68 | C160: YT/4: 40mm x 25mm | K160: m | L160: 500
A161: F | B161: 69 | C161: YT/5: 40mm x 40mm | K161: m | L161: 500
A162: F | B162: 70 | C162: NBT/4: 100mm x 40mm | K162: m | L162: 500
C164: Carried to Collection Page 29
B165: Item | C165: Description | K165: Unit | L165: Qty | M165: Supply & Deliver Rate | N165: Install Rate | O165: Amount
C166: GALVANISED STEEL TRUNKING
C167: Supply and install galvanised steel trunking complete with PVC
C168: cover plates, tees, angles(internal, external and flat), bends,
C169: end caps, bolts, screws, anchors, threaded rods, hangards, anchors,
C170: suspension system and all necessary fittings, fixtures and
C171: accessories required to complete the works.
C172: The trunking shall be installed surface on brickwork, slab,
C173: concrete, walls, ceilings, etc as required.
C174: The trunking shall be as Cabstrut or equal approved.
A175: F | B175: =B162+1 -> 71 | C175: P2000: 41mm x 41mm x 1mm | K175: m | L175: =$R$1*50 -> 500
A176: F | B176: =B175+1 -> 72 | C176: P8000: 76mm x 76mm x 0.8mm | K176: m | L176: 500
A177: F | B177: =B176+1 -> 73 | C177: P9800: 127mm x 76mm x 0.8mm | K177: m | L177: 500
C179: CABLE TRAYS
C180: Supply and install galvanised steel cable trays complete with
C181: tees, bends, elbows, splices, bolts, screws, anchors, threaded rods,
C182: hangars, anchors, suspension system and all necessary
C183: fittings, fixtures and accessories required to complete the works.
C184: The trays shall be installed 300mm from surface on brickwork, slab,
C185: concrete, walls, ceilings, etc as required.
C186: The trays shall be as Cabstrut or equal approved.
C187: LIGHT DUTY
A188: F | B188: =B177+1 -> 74 | C188: 103mm x 19mm x 1mm | K188: m | L188: =$R$1*50 -> 500
A189: F | B189: =B188+1 -> 75 | C189: 205mm x 19mm x 1.2mm | K189: m | L189: 500
A190: F | B190: =B189+1 -> 76 | C190: 305mm x 19mm x 1.2mm | K190: m | L190: 500
C191: MEDIUM DUTY
A192: F | B192: =B190+1 -> 77 | C192: 152mm x 38mm x 1.6mm | K192: m | L192: =$R$1*50 -> 500
A193: F | B193: =B192+1 -> 78 | C193: 229mm x 38mm x 1.6mm | K193: m | L193: 500
A194: F | B194: =B193+1 -> 79 | C194: 305mm x 38mm x 1.6mm | K194: m | L194: 500
C195: HEAVY DUTY
A196: F | B196: =B194+1 -> 80 | C196: 152mm x 76mm x 1.6mm | K196: m | L196: =$R$1*50 -> 500
A197: F | B197: =B196+1 -> 81 | C197: 229mm x 76mm x 1.6mm | K197: m | L197: 500
A198: F | B198: =B197+1 -> 82 | C198: 305mm x 76mm x 1.6mm | K198: m | L198: 500
C200: Carried to Collection Page 29
B201: Item | C201: Description | O201: Amount
C202: ELECTRICAL WORKS
C203: BILL OF QUANTITIES: BILL NO 6 OF 19
C205: COLLECTION PAGE
C206: WIREWAYS & ACCESSORIES
C208: Page 24
C209: Page 25
C210: Page 26
C211: Page 27
C212: Page 28
C226: WIREWAYS & ACCESSORIES
C227: TOTAL CARRIED TO BILL SUMMARY Page 92

Sheet BILL07
P1: 107.70% | R1: 1000%
B2: Item | C2: Description | K2: Unit | L2: Qty | M2: Supply & Deliver Rate | N2: Install Rate | O2: Amount
C3: ELECTRICAL WORKS
A4: G | C4: BILL OF QUANTITIES: BILL NO 7 OF 19
C5: WIRING & CONDUCTORS
C6: All cable and conductor wiring rates shall include for off cuts,
C7: slack, wastage, etc. The cost shall include all consumables.
C8: The measurements shall be taken from point to point.
C9: LOW VOLTAGE CONDUCTORS
C10: HOUSEWIRE
C11: Supply, deliver, install and terminate low voltage(600/1000V), PVC
C12: insulated, stranded copper conductors drawn into wireways,
C13: trunking, conduits, etc. Wiring channels measured elsewhere.
C14: The conductor shall be a low friction single core general purpose
C15: cable. The cable shall be manufactured to SANS 1507-2.
C16: The cables shall be as per Slipdac housewire, Abedare Cables or
C17: equal approved.
A18: G | B18: 1 | C18: 1.5mm2 | K18: m | L18: =$R$1*1000 -> 10000
A19: G | B19: =B18+1 -> 2 | C19: 2.5mm2 | K19: m | L19: =$R$1*1000 -> 10000
A20: G | B20: =B19+1 -> 3 | C20: 4mm2 | K20: m | L20: 10000
A21: G | B21: =B20+1 -> 4 | C21: 6mm2 | K21: m | L21: =$R$1*100 -> 1000
A22: G | B22: =B21+1 -> 5 | C22: 10mm2 | K22: m | L22: =$R$1*10 -> 100
A23: G | B23: =B22+1 -> 6 | C23: 16mm2 | K23: m | L23: =$R$1*10 -> 100
C25: SURFIX
C26: Supply, deliver, install and terminate low voltage(300/500V), PVC
C27: insulated, stranded copper conductors laid up with a bare
C28: tinned copper earth wire in contact with a longitudinal
C29: aluminium/polyethylene laminate, UV stable PVC sheathed
C30: to SANS 1411-2, specification SANS 1507-2
C31: The cables shall be as per Surfix, Abedare Cables or
C32: equal approved only.
C34: TWO CORE
A35: G | B35: =B23+1 -> 7 | C35: 1.5mm2 | K35: m | L35: =$R$1*1000 -> 10000
A36: G | B36: =B35+1 -> 8 | C36: 2.5mm2 | K36: m | L36: 10000
A37: G | B37: =B36+1 -> 9 | C37: 4mm2 | K37: m | L37: 10000
A38: G | B38: =B37+1 -> 10 | C38: 6mm2 | K38: m | L38: =$R$1*100 -> 1000
C40: Carried to Collection Page 33
B41: Item | C41: Description | K41: Unit | L41: Qty | M41: Supply & Deliver Rate | N41: Install Rate | O41: Amount
A42: G | B42: =B38+1 -> 11 | C42: 10mm2 | K42: m | L42: =$R$1*10 -> 100
A43: G | B43: =B42+1 -> 12 | C43: 16mm2 | K43: m | L43: 100
C45: THREE CORE
A46: G | B46: =B43+1 -> 13 | C46: 1.5mm2 | K46: m | L46: =$R$1*100 -> 1000
A47: G | B47: =B46+1 -> 14 | C47: 2.5mm2 | K47: m | L47: 1000
A48: G | B48: =B47+1 -> 15 | C48: 4mm2 | K48: m | L48: 1000
A49: G | B49: =B48+1 -> 16 | C49: 6mm2 | K49: m | L49: 1000
C51: FOUR CORE
A52: G | B52: =B49+1 -> 17 | C52: 1.5mm2 | K52: m | L52: =$R$1*10 -> 100
A53: G | B53: =B52+1 -> 18 | C53: 2.5mm2 | K53: m | L53: 100
A54: G | B54: =B53+1 -> 19 | C54: 4mm2 | K54: m | L54: 100
A55: G | B55: =B54+1 -> 20 | C55: 6mm2 | K55: m | L55: 100
C57: FLAT TWIN & EARTH
C58: Supply, deliver, install and terminate low voltage(300/500V), PVC
C59: insulated, stranded copper conductors laid up with a bare
C60: copper continuity conductor between them, PVC sheated to
C61: SANS 1411-2. Specification SANS 1574
C62: The cables shall be as per Flat Twin and Earth, Abedare Cables or
C63: equal approved.
C64: TWO CORE
A65: G | B65: =B55+1 -> 21 | C65: 1.5mm2 | K65: m | L65: =$R$1*100 -> 1000
A66: G | B66: =B65+1 -> 22 | C66: 2.5mm2 | K66: m | L66: 1000
A67: G | B67: =B66+1 -> 23 | C67: 4mm2 | K67: m | L67: 1000
A68: G | B68: =B67+1 -> 24 | C68: 6mm2 | K68: m | L68: 1000
A69: G | B69: =B68+1 -> 25 | C69: 10mm2 | K69: m | L69: =$R$1*10 -> 100
A70: G | B70: =B69+1 -> 26 | C70: 16mm2 | K70: m | L70: 100
C72: THREE CORE
A73: G | B73: =B70+1 -> 27 | C73: 1.5mm2 | K73: m | L73: =$R$1*10 -> 100
A74: G | B74: =B73+1 -> 28 | C74: 2.5mm2 | K74: m | L74: 100
A75: G | B75: =B74+1 -> 29 | C75: 4mm2 | K75: m | L75: 100
C77: FOUR CORE
A78: G | B78: =B75+1 -> 30 | C78: 1.5mm2 | K78: m | L78: =$R$1*5 -> 50
A79: G | B79: =B78+1 -> 31 | C79: 2.5mm2 | K79: m | L79: =$R$1*5 -> 50
A80: G | B80: =B79+1 -> 32 | C80: 4mm2 | K80: m | L80: 50
C81: Carried to Collection Page 33 EE
B82: Item | C82: Description | K82: Unit | L82: Qty | M82: Supply & Deliver Rate | N82: Install Rate | O82: Amount
C83: CABTYRE - NORMAL DUTY
C84: Supply, deliver, install and terminate low voltage(300/500V),
C85: normal duty, PVC insulated, high conductivity bunched plain
C86: flexible copper conductors to SANS 1411. Cores to be twisted
C87: together and sheathed with a flexible grade PVC.
C88: The cables shall be as per Cabtyre- normal duty, Abedare Cables or
C89: equal approved.
C91: THREE CORE
A92: G | B92: =B80+1 -> 33 | C92: 1.5mm2 | K92: m | L92: =$R$1*1000 -> 10000
A93: G | B93: =B92+1 -> 34 | C93: 2.5mm2 | K93: m | L93: 10000
A94: G | B94: =B93+1 -> 35 | C94: 4mm2 | K94: m | L94: 500
C96: FOUR CORE
A97: G | B97: =B94+1 -> 36 | C97: 1.5mm2 | K97: m | L97: =$R$1*5 -> 50
A98: G | B98: =B97+1 -> 37 | C98: 2.5mm2 | K98: m | L98: 50
A99: G | B99: =B98+1 -> 38 | C99: 4mm2 | K99: m | L99: 50
C101: PVC INSULATED MVGP GRADE CONDUCTORS
C102: Supply, deliver, install and terminate PVC insulated MVGP
C103: grade conductor.
C104: The conductor shall be as per Abedare or equal approved.
A105: G | B105: =B99+1 -> 39 | C105: 1.5mm2 | K105: m | L105: 200
A106: G | B106: =B105+1 -> 40 | C106: 2.5mm2 | K106: m | L106: 200
A107: G | B107: =B106+1 -> 41 | C107: 4mm2 | K107: m | L107: =$R$1*100 -> 1000
A108: G | B108: =B107+1 -> 42 | C108: 6mm2 | K108: m | L108: 1000
A109: G | B109: =B108+1 -> 43 | C109: 10mm2 | K109: m | L109: =$R$1*10 -> 100
A110: G | B110: =B109+1 -> 44 | C110: 16mm2 | K110: m | L110: 100
C115: Carried to Collection Page 33 EE
B116: Item | C116: Description | K116: Unit | L116: Qty | M116: Supply & Deliver Rate | N116: Install Rate | O116: Amount
C117: ELECTRICAL WORKS
C118: BILL OF QUANTITIES: BILL NO 7 OF 19
C120: COLLECTION
C121: WIRING & CONDUCTORS
C123: Page 30
C124: Page 31
C125: Page 32
C144: WIRING & CONDUCTORS
C145: TOTAL CARRIED TO BILL SUMMARY Page 92 EE

Sheet BILL08
P1: 107.70% | R1: 1000%
B2: Item | C2: Description | K2: Unit | L2: Qty | M2: Supply & Deliver Rate | N2: Install Rate | O2: Amount
C4: ELECTRICAL WORKS
A5: H | C5: BILL OF QUANTITIES: BILL NO 8 OF 19
C6: LUMINAIRES
C7: The supply, delivery and installation of luminaires, complete
C8: with electronic control gear and ballasts, lamps,
C9: fittings, fixtures and accessories.
C10: The luminaires shall be delivered to site in a protective cover.
C11: The lamps shall be delivered to site separately in a protective cover
C12: with the exception of the IP65 fittings which will be delivered
C13: pre lamped by the supplier/manufacturer.
C14: All lamps to be Colour rendering index Ra ≥80, 3000K, Osram
C15: The luminaires shall bear the SANS safety mark.
C16: The luminaires shall be fitted and wired in terms of the
C17: SANS 10142: Wiring Code Latest Revision
C18: The luminaires shall be suitable for operation at 250V, 50Hz.
C19: The luminaires shall be mounted surface, suspended, recessed,
C20: semi recessed where applicable to walls, ceilings, roofs, poles, etc.
C21: The luminaires shall be as per the specified brand or other
C22: approved only.
C24: All LED Luminares shall not be less than LM97 B50 type with a minimum of
C25: 50 000 hours life and 5 year warrenty.
C26: The LED luminares shall be SABS approved and shall have an internal surge
C27: protection unit.
C28: An outdoor luminare shall be UV stabalised.
C30: BULKHEADS:
C31: INDUSTRIAL & SEMI INDUSTRIAL APPLICATIONS
C32: IP65
C33: The luminaires shall be as per Lascon or equal approved
A34: H | B34: 1 | C34: B40-57W - LED bulkhead | K34: No | L34: =$R$1*5 -> 50
A35: H | B35: =B34+1 -> 2 | C35: B40-80W - MVE- Mercury Vapour bulkhead | K35: No | L35: =$R$1*5 -> 50
A36: H | B36: 3 | C36: B40-70W - HPSE- High Pressure Sodium bulkhead | K36: No | L36: 50
A37: H | B37: 4 | C37: B40-100W - HPSE- High Pressure Sodium bulkhead | K37: No | L37: 50
A38: H | B38: 5 | C38: B40-150W - HPSE- High Pressure Sodium bulkhead | K38: No | L38: 50
A39: H | B39: 6 | C39: B40-70W - MH- Metal Halide bulkhead | K39: No | L39: 50
A40: H | B40: 7 | C40: B40-100W - MH- Metal Halide bulkhead | K40: No | L40: 50
A41: H | B41: 8 | C41: B40-150W - MH- Metal Halide bulkhead | K41: No | L41: 50
A42: H | B42: 9 | C42: B40-242W - ELB - 2x42W Fluorescent bulkhead | K42: No | L42: 50
C44: Carried to Collection Page 48 EE
B45: Item | C45: Description | K45: Unit | L45: Qty | M45: Supply & Deliver Rate | N45: Install Rate | O45: Amount
C46: BULKHEADS:
C47: DECORATIVE: ROUND & DOME
C48: INDUSTRIAL & SEMI INDUSTRIAL APPLICATIONS
C49: IP65 , 230 mm diameter, Colour: Black
C50: The luminaires shall be as per Lascon or equal approved
A51: H | B51: =B42+1 -> 10 | C51: Round: B10 -10W - LED | K51: No | L51: =$R$1*5 -> 50
A52: H | B52: =B51+1 -> 11 | C52: Round: B10 - ES - 18W Energy saver lamp | K52: No | L52: 50
A53: H | B53: =B52+1 -> 12 | C53: Dome: B10 - 10W - LED | K53: No | L53: 50
A54: H | B54: =B53+1 -> 13 | C54: Dome: B10 - ES - 18W Energy saver lamp | K54: No | L54: 50
A55: H | B55: =B54+1 -> 14 | C55: B10 - Decorative skirt | K55: No | L55: 50
C56: DECORATIVE: SQUARE
C57: INDUSTRIAL & SEMI INDUSTRIAL APPLICATIONS
C58: IP65 , 205 mm width, Colour: Black
C59: The luminaires shall be as per Lascon or equal approved
A60: H | B60: =B55+1 -> 15 | C60: Round: B20 -10W - LED | K60: No | L60: =$R$1*5 -> 50
A61: H | B61: =B60+1 -> 16 | C61: Round: B20 - ES - 18W Energy saver lamp | K61: No | L61: 50
A62: H | B62: =B61+1 -> 17 | C62: B20 - Decorative skirt | K62: No | L62: 50
C64: BULKHEADS:
C65: GENERAL: DECORATIVE
C66: IP65
C67: The luminaires shall be as per Lascon or equal approved
C68: CFL
A69: H | B69: =B62+1 -> 18 | C69: Rimini: 218-ELB-DOME- 355mm dia White or Black | K69: No | L69: =$R$1*5 -> 50
C70: LED
A71: H | B71: =B69+1 -> 19 | C71: Rimini: 17.5-LED-DOME- 355mm dia White or Black | K71: No | L71: =$R$1*5 -> 50
C72: CFL
A73: H | B73: =B71+1 -> 20 | C73: Milano: 218-ELB-DOME- 270mm dia White or Black | K73: No | L73: =$R$1*5 -> 50
C74: LED
A75: H | B75: =B73+1 -> 21 | C75: Milano: 17.5-LED-DOME- 355mm dia White or Black | K75: No | L75: =$R$1*5 -> 50
C76: CFL
A77: H | B77: =B75+1 -> 22 | C77: Roma: 218-ELB-DOME- 266mm dia White or Black | K77: No | L77: =$R$1*5 -> 50
C78: LED
A79: H | B79: =B77+1 -> 23 | C79: Roma: 17.5-LED-DOME- 266mm dia White or Black | K79: No | L79: =$R$1*5 -> 50
C81: Carried to Collection Page 48 EE
B82: Item | C82: Description | K82: Unit | L82: Qty | M82: Supply & Deliver Rate | N82: Install Rate | O82: Amount
C83: BULKHEADS:
C84: COMMERCIAL: ROUND: ALUMINIUM BASE, UV
C85: STABILISED POLYCARBONATE DIFFUSER, IP65 INDOOR
C86: & OUTDOOR APPLICATION 295mm DIAMETER
C87: The luminaires shall be as per Swanlite or equal approved
A88: H | B88: =B79+1 -> 24 | C88: ILM/MAS/SOL/2PL9 - Black or White | K88: No | L88: =$R$1*5 -> 50
A89: H | B89: =B88+1 -> 25 | C89: ILM/MAS/SOL/1PL18 - Black or White | K89: No | L89: 50
A90: H | B90: =B89+1 -> 26 | C90: ILM/MAS/SOL/LED/ - Black or White | K90: No | L90: 50
C91: COMMERCIAL: ROUND: ALUMINIUM BASE,
C92: UV STABILISED OPAL OR PRISMATIC, FLAT OR
C93: DOMED DIFFUSER: CLIENT TO SELECT INDOOR &
C94: OUTDOOR APPLICATION 360mm DIAMETER
C95: The luminaires shall be as per Swanlite or equal approved
A96: H | B96: =B90+1 -> 27 | C96: MAS/LLB/2D16/AL - Black or White Trim | K96: No | L96: =$R$1*5 -> 50
A97: H | B97: =B96+1 -> 28 | C97: MAS/LLB/2D28/AL - Black or White Trim | K97: No | L97: 50
A98: H | B98: =B97+1 -> 29 | C98: MAS/LLB/2PL18/AL - Black or White Trim | K98: No | L98: 50
A99: H | B99: =B98+1 -> 30 | C99: MAS/LLB/LED/AL - Black or White Trim | K99: No | L99: 50
C100: COMMERCIAL: ROUND: ALUMINIUM BASE,
C101: UV STABILISED OPAL DIFFUSER
C102: INDOOR & OUTDOOR APPLICATION
C103: 280mm DIAMETER
C104: The luminaires shall be as per Beka or equal approved
A105: H | B105: =B99+1 -> 31 | C105: Series 30: 31007/15W LED - Black or White Trim | K105: No | L105: =$R$1*5 -> 50
A106: H | B106: =B105+1 -> 32 | C106: Series 30: 31116/2D16W - Black or White Trim | K106: No | L106: 50
A107: H | B107: =B106+1 -> 33 | C107: Series 30: 31118/1PL18W CFL - Black or White Trim | K107: No | L107: 50
A108: H | B108: =B107+1 -> 34 | C108: Series 30: 31209/2PL9W CFL - Black or White Trim | K108: No | L108: 50
A109: H | B109: =B108+1 -> 35 | C109: Series 30: 31218/2PL18W CFL - Black or White Trim | K109: No | L109: 50
C110: BULKHEAD ACCESSORIES
A111: H | B111: =B109+1 -> 36 | C111: Adaptor Ring for surface wiring per bulkhead | K111: Item | L111: =$R$1*5 -> 50
C112: PORCELAIN BOWL FITTING
C113: The luminaires shall be as per Radiant or equal approved
C114: and fitted with Osram or equal approved lamp
A115: H | B115: 37 | C115: 6" Opal, porcelain bowl, screw neck, complete
C116: with gallery and porcelain lampholder and 15W ES,
C117: stick lamp. | K117: No | L117: =$R$1*5 -> 50
C119: Carried to Collection Page 48 EE
B120: Item | C120: Description | K120: Unit | L120: Qty | M120: Supply & Deliver Rate | N120: Install Rate | O120: Amount
A121: H | B121: =B115+1 -> 38 | C121: 8" Opal, porcelain bowl, screw neck, complete
C122: with gallery and porcelain lampholder and 15W ES,
C123: stick lamp. | K123: No | L123: =$R$1*5 -> 50
C124: OPEN CHANNEL LUMINAIRES:
C125: CHANNELS & BATTENS
C126: DOMESTIC & COMMERCIAL APPLICATIONS
C127: BODY: COLD MILD ROLLED STEEL WITH EPOXY
C128: POWDER COATED FINISH, IP20
C129: SURFACE/SUSPENDED MOUNTED CHANNELS
C130: The luminaires shall be as per Lascon or equal approved
C131: T5
C132: 4 FOOT (1180mm length):
A133: H | B133: 39 | C133: Channel/228/ELB: 2x28W | K133: No | L133: =$R$1*5 -> 50
A134: H | B134: =B133+1 -> 40 | C134: Channel/254/ELB: 2x54W | K134: No | L134: 50
C135: ACCESSORIES
C136: WIRE GUARD
A137: H | B137: =B134+1 -> 41 | C137: 4ft Galvanised steel wire as per for above fittings | K137: Item | L137: =$R$1*5 -> 50
C138: INDUSTRIAL WING
A139: H | B139: =B137+1 -> 42 | C139: 4ft mild steel, B-Focal wing attachment as per for
C140: above fittings | K140: Item | L140: =$R$1*5 -> 50
C141: SEAMLESS BATTEN
C142: The luminaires shall be as per Lascon or equal approved
C143: T5
C144: 4 FOOT (1180mm length):
A145: H | B145: =B139+1 -> 43 | C145: Seamless Batten/154/ELB: 1x54W | K145: No | L145: =$R$1*5 -> 50
C146: BATTEN
C147: T5
C148: 2 FOOT (680mm length):
A149: H | B149: =B145+1 -> 44 | C149: Batten/124/ELB: 1x24W | K149: No | L149: =$R$1*5 -> 50
C150: 4 FOOT (1180mm length):
A151: H | B151: =B149+1 -> 45 | C151: Batten/128/ELB: 1x28W | K151: No | L151: =$R$1*5 -> 50
A152: H | B152: =B151+1 -> 46 | C152: Batten/154/ELB: 1x54W | K152: No | L152: 50
C153: 5 FOOT (1480mm length):
A154: H | B154: =B152+1 -> 47 | C154: Batten/149/ELB: 1x35W
A155: H | B155: =B154+1 -> 48 | C155: Batten/149/ELB: 1x49W | K155: No | L155: =$R$1*5 -> 50
A156: H | B156: =B155+1 -> 49 | C156: Batten/180/ELB: 1x80W | K156: No | L156: 50
C158: Carried to Collection Page 48 EE
B159: Item | C159: Description | K159: Unit | L159: Qty | M159: Supply & Deliver Rate | N159: Install Rate | O159: Amount
C160: INDUSTRIAL WING
A161: H | B161: =B156+1 -> 50 | C161: 2ft mild steel, B-Focal wing attachment as per for
C162: above fittings | K162: Item | L162: =$R$1*5 -> 50
A163: H | B163: =B161+1 -> 51 | C163: 4ft mild steel, B-Focal wing attachment as per for
C164: above fittings | K164: Item | L164: =$R$1*5 -> 50
A165: H | B165: =B163+1 -> 52 | C165: 5ft mild steel, B-Focal wing attachment as per for
C166: above fittings | K166: Item | L166: =$R$1*5 -> 50
C168: LED
C169: 4 FOOT (1120mm length):
A170: H | B170: =B165+1 -> 53 | C170: Batten/22W/LED | K170: No | L170: =$R$1*5 -> 50
A171: H | B171: =B170+1 -> 54 | C171: Batten/28W/LED | K171: No | L171: 50
A172: H | B172: =B171+1 -> 55 | C172: Batten/32W/LED | K172: No | L172: 50
A173: H | B173: =B172+1 -> 56 | C173: Batten/39W/LED | K173: No | L173: 50
A174: H | B174: =B173+1 -> 57 | C174: Batten/46W/LED | K174: No | L174: 50
C176: LIGHTING SYSTEMS
C178: RAIL
C179: COMMERCIAL APPLICATION:
C180: WAREHOUSES, FACTORIES, AISLE LIGHTING
C181: The luminaires shall be as per Lascon or equal approved
C182: T5
C183: 4 FOOT (1225mm length):
A184: H | B184: =B174+1 -> 58 | C184: Rail - 154 - ELB | K184: No | L184: =$R$1*5 -> 50
C185: 5 FOOT (1525mm length):
A186: H | B186: =B184+1 -> 59 | C186: Rail - 180 - ELB | K186: No | L186: =$R$1*5 -> 50
C187: LED
C188: 4 FOOT (1225mm length):
A189: H | B189: =B186+1 -> 60 | C189: Rail - 32W - LED | K189: No | L189: =$R$1*5 -> 50
A190: H | B190: =B189+1 -> 61 | C190: Rail - 46W - LED | K190: No | L190: =$R$1*5 -> 50
C193: Carried to Collection Page 48 EE
B194: Item | C194: Description | K194: Unit | L194: Qty | M194: Supply & Deliver Rate | N194: Install Rate | O194: Amount
C195: VAPOUR & TAMPERPROOF LUMINAIRES:
C196: COMMERCIAL & INDUSTRIAL APPLICATIONS
C197: BODY: GREY INJECTION MOULDED UV STABILISED
C198: SELF EXTINGUISHING POLYCARBONATE.
C199: DIFFUSER: ONE PIECE INJECTION MOULDED UV
C200: SELF EXTINGUISHING POLYCARBONATE. LINEAR
C201: LIGHT CONTROL PRISMS ON THE INSIDE
C202: SURFACE/SUSPENDED MOUNTED, IP65
C203: The luminaires shall be as per Lascon or equal approved
C204: 4 FOOT (1225mm length):
C207: T5: 16mm: ROTA-LOCK LAMP HOLDERS
A208: H | B208: =B190+1 -> 62 | C208: C10: 228-ELB: 2x28W | K208: No | L208: =$R$1*5 -> 50
A209: H | B209: =B208+1 -> 63 | C209: C10: 228-ELB: 2x54W | K209: No | L209: 50
C210: LED
A211: H | B211: =B209+1 -> 64 | C211: C10: 27W-LED | K211: No | L211: =$R$1*5 -> 50
A212: H | B212: =B211+1 -> 65 | C212: C10: 37W-LED | K212: No | L212: 50
C215: 5 FOOT (1570mm length):
C216: T5: 16mm: ROTA-LOCK LAMP HOLDERS
A217: H | B217: 64 | C217: C10: 235-ELB: 2x35W | K217: No | L217: =$R$1*5 -> 50
... 338 more rows

Sheet BILL09
P1: 107.70% | R1: 1000%
B2: Item | C2: Description | K2: Unit | L2: Qty | M2: Supply & Deliver Rate | N2: Install Rate | O2: Amount
C3: ELECTRICAL WORKS
A4: I | C4: BILL OF QUANTITIES: BILL NO 9 OF 19
C5: LAMPS
C6: COMPACT FLUORESCENT LAMPS:
C7: WITH INTEGRATED CONTROL GEAR
C8: The lamps shall be complete with integrated control gear.
C9: The lamps shall be rated 220-240V, 50Hz.
C10: The lamps to be Colour rendering index Ra ≥80, and
C11: available in 2700K, 4000K and 6500K.
C12: The colour temperature shall be confirmed on site.
C13: The lamps to be provided in either E14 or E27 types
C14: dependant upon the existing or new fitting lampholder.
C15: The lamps shall have an average life of 10000hrs.
C16: The lamps shall be as per Osram or Philips or equal approved.
C18: STICK TYPE
A19: I | B19: 1 | C19: DULUX STICK 8W | K19: No | L19: =$R$1*5 -> 50
A20: I | B20: =B19+1 -> 2 | C20: DULUX STICK 11W | K20: No | L20: =$R$1*5 -> 50
A21: I | B21: =B20+1 -> 3 | C21: DULUX STICK 15W | K21: No | L21: =$R$1*5 -> 50
A22: I | B22: =B21+1 -> 4 | C22: DULUX STICK 20W | K22: No | L22: =$R$1*5 -> 50
A23: I | B23: =B22+1 -> 5 | C23: DULUX STICK 23W | K23: No | L23: =$R$1*5 -> 50
C25: TWIST(SPIRAL) TYPE
A26: I | B26: =B23+1 -> 6 | C26: DULUX TWIST 9W | K26: No | L26: =$R$1*5 -> 50
A27: I | B27: =B26+1 -> 7 | C27: DULUX TWIST 12W | K27: No | L27: =$R$1*5 -> 50
A28: I | B28: =B27+1 -> 8 | C28: DULUX TWIST 15W | K28: No | L28: =$R$1*5 -> 50
A29: I | B29: =B28+1 -> 9 | C29: DULUX TWIST 20W | K29: No | L29: =$R$1*5 -> 50
A30: I | B30: =B29+1 -> 10 | C30: DULUX TWIST 23W | K30: No | L30: =$R$1*5 -> 50
C31: CIRCULAR TYPE
A32: I | B32: =B30+1 -> 11 | C32: CIRCOLUX 24W | K32: No | L32: =$R$1*5 -> 50
C34: CLASSIC BULB SHAPE TYPE
A35: I | B35: =B32+1 -> 12 | C35: DULUX, CLA 11W | K35: No | L35: =$R$1*5 -> 50
A36: I | B36: =B35+1 -> 13 | C36: DULUX, CLA 15W | K36: No | L36: =$R$1*5 -> 50
A37: I | B37: =B36+1 -> 14 | C37: DULUX, CLA 20W | K37: No | L37: =$R$1*5 -> 50
C38: CANDLE SHAPE TYPE
A39: I | B39: =B37+1 -> 15 | C39: DULUX, CLB 6W | K39: No | L39: =$R$1*5 -> 50
A40: I | B40: =B39+1 -> 16 | C40: DULUX, CLB 9W | K40: No | L40: =$R$1*5 -> 50
C43: Carried to Collection Page 57 EE
B44: Item | C44: Description | K44: Unit | L44: Qty | M44: Supply & Deliver Rate | N44: Install Rate | O44: Amount
C45: MINI BULLET SHAPE TYPE
A46: I | B46: =B40+1 -> 17 | C46: DULUX, CL P 6W | K46: No | L46: =$R$1*5 -> 50
A47: I | B47: =B46+1 -> 18 | C47: DULUX, CL P 9W | K47: No | L47: =$R$1*5 -> 50
C49: GLOBE SHAPE TYPE
A50: I | B50: =B47+1 -> 19 | C50: DULUX, GL 15W | K50: No | L50: =$R$1*5 -> 50
A51: I | B51: =B50+1 -> 20 | C51: DULUX, GL 20W | K51: No | L51: =$R$1*5 -> 50
C54: WITHOUT INTEGRATED CONTROL GEAR
C55: The lamps shall be suitable for operation on conventional
C56: or electronic control gear as required.
C57: The lamps shall be rated 220-240V, 50Hz.
C58: The lamps to be Colour rendering index Ra ≥80, and
C59: available in 2700K, 4000K and 6500K.
C60: The colour temperature shall be confirmed on site.
C61: The lamps shall have an average life of 10000hrs.
C62: The lamps shall be as per Osram or Philips or equal approved.
C64: T PLUS
C65: CFLni, 3 tubes, with 2-pin base for CCG operation
A66: I | B66: =B51+1 -> 21 | C66: DULUX T PLUS, 13W | K66: No | L66: =$R$1*5 -> 50
A67: I | B67: =B66+1 -> 22 | C67: DULUX T PLUS, 18W | K67: No | L67: =$R$1*5 -> 50
A68: I | B68: =B67+1 -> 23 | C68: DULUX T PLUS, 26W | K68: No | L68: =$R$1*5 -> 50
C70: T/E PLUS
C71: CFLni, 3 tubes, with 4-pin base for ECG operation
A72: I | B72: =B68+1 -> 24 | C72: DULUX T/E PLUS, 13W | K72: No | L72: =$R$1*5 -> 50
A73: I | B73: =B72+1 -> 25 | C73: DULUX T/E PLUS, 18W | K73: No | L73: =$R$1*5 -> 50
A74: I | B74: =B73+1 -> 26 | C74: DULUX T/E PLUS, 26W | K74: No | L74: =$R$1*5 -> 50
A75: I | B75: =B74+1 -> 27 | C75: DULUX T/E PLUS, 32W | K75: No | L75: =$R$1*5 -> 50
A76: I | B76: =B75+1 -> 28 | C76: DULUX T/E PLUS, 42W | K76: No | L76: =$R$1*5 -> 50
C78: T/E CONSTANT
C79: CFLni, 3 tubes, with 4-pin base for ECG operation
A80: I | B80: =B76+1 -> 29 | C80: DULUX T/E CONSTANT, 26W | K80: No | L80: =$R$1*5 -> 50
A81: I | B81: =B80+1 -> 30 | C81: DULUX T/E CONSTANT, 32W | K81: No | L81: =$R$1*5 -> 50
A82: I | B82: =B81+1 -> 31 | C82: DULUX T/E CONSTANT, 42W | K82: No | L82: =$R$1*5 -> 50
C84: Carried to Collection Page 57 EE
B85: Item | C85: Description | K85: Unit | L85: Qty | M85: Supply & Deliver Rate | N85: Install Rate | O85: Amount
C86: T/E XT
C87: CFLni, 3 tubes, with 4-pin base for ECG operation
A88: I | B88: =B82+1 -> 32 | C88: DULUX T/E, XT, 32W | K88: No | L88: =$R$1*5 -> 50
A89: I | B89: =B88+1 -> 33 | C89: DULUX T/E, XT, 42W | K89: No | L89: =$R$1*5 -> 50
C91: D
C92: CFLni, 3 tubes, with 2-pin base for ECG operation
A93: I | B93: =B89+1 -> 34 | C93: DULUX D, 10W | K93: No | L93: =$R$1*5 -> 50
A94: I | B94: =B93+1 -> 35 | C94: DULUX D, 13W | K94: No | L94: =$R$1*5 -> 50
A95: I | B95: =B94+1 -> 36 | C95: DULUX D, 18W | K95: No | L95: =$R$1*5 -> 50
A96: I | B96: =B95+1 -> 37 | C96: DULUX D, 26W | K96: No | L96: =$R$1*5 -> 50
C98: D/E
C99: CFLni, 2 tubes, with 4-pin base for ECG operation
A100: I | B100: =B96+1 -> 38 | C100: DULUX D/E, 10W | K100: No | L100: =$R$1*5 -> 50
A101: I | B101: =B100+1 -> 39 | C101: DULUX D/E, 13W | K101: No | L101: =$R$1*5 -> 50
A102: I | B102: =B101+1 -> 40 | C102: DULUX D/E, 18W | K102: No | L102: =$R$1*5 -> 50
A103: I | B103: =B102+1 -> 41 | C103: DULUX D/E, 26W | K103: No | L103: =$R$1*5 -> 50
C105: S
C106: Short CFLni, with 2-pin base for CCG operation
A107: I | B107: =B103+1 -> 42 | C107: DULUX S, 5W | K107: No | L107: =$R$1*5 -> 50
A108: I | B108: =B107+1 -> 43 | C108: DULUX S, 7W | K108: No | L108: =$R$1*5 -> 50
A109: I | B109: =B108+1 -> 44 | C109: DULUX S, 9W | K109: No | L109: =$R$1*5 -> 50
A110: I | B110: =B109+1 -> 45 | C110: DULUX S, 11W | K110: No | L110: =$R$1*5 -> 50
C112: S/E
C113: Short CFLni, with 4-pin base for ECG operation
A114: I | B114: =B110+1 -> 46 | C114: DULUX S/E, 7W | K114: No | L114: =$R$1*5 -> 50
A115: I | B115: =B114+1 -> 47 | C115: DULUX S/E, 9W | K115: No | L115: =$R$1*5 -> 50
A116: I | B116: =B115+1 -> 48 | C116: DULUX S/E, 11W | K116: No | L116: =$R$1*5 -> 50
C117: LUMILUX
C118: CFLni, with 4-pin base 2G11 for ECG/CCG operation
A119: I | B119: =B116+1 -> 49 | C119: DULUX L, 18W | K119: No | L119: =$R$1*5 -> 50
A120: I | B120: =B119+1 -> 50 | C120: DULUX L, 24W | K120: No | L120: 50
A121: I | B121: =B120+1 -> 51 | C121: DULUX L, 36W | K121: No | L121: 50
A122: I | B122: =B121+1 -> 52 | C122: DULUX L, 40W | K122: No | L122: 50
A123: I | B123: =B122+1 -> 53 | C123: DULUX L, 55W | K123: No | L123: 50
A124: I | B124: =B123+1 -> 54 | C124: DULUX L, 80W | K124: No | L124: 50
C126: Carried to Collection Page 57 EE
B127: Item | C127: Description | K127: Unit | L127: Qty | M127: Supply & Deliver Rate | N127: Install Rate | O127: Amount
C128: CFL SQUARE: 2D TYPE: 2 PIN
C129: Square CFLni, with 2-pin base GR8 base for
C130: CCG operation
A131: I | B131: =B124+1 -> 55 | C131: Square, 16W | K131: No | L131: =$R$1*5 -> 50
A132: I | B132: =B131+1 -> 56 | C132: Square, 28W | K132: No | L132: =$R$1*5 -> 50
C134: CFL SQUARE: 2D TYPE: 4 PIN
C135: Square CFLni, with 4-pin base GR8 base for
C136: ECG/CCG operation
A137: I | B137: =B132+1 -> 57 | C137: Square, 16W | K137: No | L137: =$R$1*5 -> 50
A138: I | B138: =B137+1 -> 58 | C138: Square, 28W | K138: No | L138: =$R$1*5 -> 50
A139: I | B139: =B138+1 -> 59 | C139: Square, 38W | K139: No | L139: =$R$1*5 -> 50
C140: TUBULAR FLUORESCENT LAMPS
C141: The lamps shall be rated 220-240V, 50Hz.
C142: The lamps to be Colour rendering index Ra ≥80, and
C143: available in 2700K, 3500K, 4000K and 6500K.
C144: The colour temperature shall be confirmed on site.
C145: The lamps shall have an average life of 10000hrs.
C146: The lamps shall be as per Osram or Philips or equal approved
C148: T5
C149: LUMILUX HE
C150: Tubular fluorescent lamp 16mm, high efficiency,
C151: with G5 base
A152: I | B152: =B139+1 -> 60 | C152: HE 14W | K152: No | L152: =$R$1*5 -> 50
A153: I | B153: =B152+1 -> 61 | C153: HE 21W | K153: No | L153: =$R$1*5 -> 50
A154: I | B154: =B153+1 -> 62 | C154: HE 28W | K154: No | L154: =$R$1*5 -> 50
A155: I | B155: =B154+1 -> 63 | C155: HE 35W | K155: No | L155: =$R$1*5 -> 50
C157: LUMILUX HO
C158: Tubular fluorescent lamp 16mm, high efficiency,
C159: with G5 base
A160: I | B160: =B155+1 -> 64 | C160: HO 24W | K160: No | L160: =$R$1*5 -> 50
A161: I | B161: =B160+1 -> 65 | C161: HO 39W | K161: No | L161: =$R$1*5 -> 50
A162: I | B162: =B161+1 -> 66 | C162: HO 49W | K162: No | L162: =$R$1*5 -> 50
A163: I | B163: =B162+1 -> 67 | C163: HO 54W | K163: No | L163: =$R$1*5 -> 50
A164: I | B164: =B163+1 -> 68 | C164: HO 80W | K164: No | L164: =$R$1*5 -> 50
C167: Carried to Collection Page 57 EE
B168: Item | C168: Description | K168: Unit | L168: Qty | M168: Supply & Deliver Rate | N168: Install Rate | O168: Amount
C169: LUMILUX FC
C170: Circular fluorescent lamp, 16mm, with 2GX13 base
A171: I | B171: =B164+1 -> 69 | C171: FC 22W | K171: No | L171: =$R$1*5 -> 50
A172: I | B172: =B171+1 -> 70 | C172: FC 40W | K172: No | L172: =$R$1*5 -> 50
A173: I | B173: =B172+1 -> 71 | C173: FC 55W | K173: No | L173: =$R$1*5 -> 50
C174: T8
C175: LUMILUX ES
C176: Tubular fluorescent lamp 26mm, high efficiency,
C177: with G13 base, energy saver
A178: I | B178: =B173+1 -> 72 | C178: L 16W | K178: No | L178: =$R$1*5 -> 50
A179: I | B179: =B178+1 -> 73 | C179: L 32W | K179: No | L179: =$R$1*5 -> 50
A180: I | B180: =B179+1 -> 74 | C180: L 51W | K180: No | L180: =$R$1*5 -> 50
C181: T9
C182: LUMILUX T9 C
C183: Circular fluorescent lamp 29mm, with G10q base
A184: I | B184: =B180+1 -> 75 | C184: L 22W | K184: No | L184: =$R$1*5 -> 50
A185: I | B185: =B184+1 -> 76 | C185: L 32W | K185: No | L185: =$R$1*5 -> 50
A186: I | B186: =B185+1 -> 77 | C186: L 40W | K186: No | L186: =$R$1*5 -> 50
C187: LED LAMPS
C188: The lamps to be Colour rendering index Ra ≥80, and
C189: available in 2700K or 4000K.
C190: The colour temperature shall be confirmed on site.
C191: The lamps shall have an average life of 15000hrs.
C192: The lamps shall be as per Osram or Philips or equal approved
C193: PARATHOM PAR 16
C194: LED reflector lamps with retrofit plug base
A195: I | B195: =B186+1 -> 78 | C195: Parathom PAR 16, 2.6W | K195: No | L195: =$R$1*5 -> 50
A196: I | B196: =B195+1 -> 79 | C196: Parathom PAR 16, 4.3W | K196: No | L196: =$R$1*5 -> 50
A197: I | B197: =B196+1 -> 80 | C197: Parathom PAR 16, 6.9W | K197: No | L197: =$R$1*5 -> 50
C198: PARATHOM PRO PAR 16
C199: Dimmable LED reflector lamps with retrofit plug base
A200: I | B200: =B197+1 -> 81 | C200: Parathom Pro, PAR 16, 4.6W | K200: No | L200: =$R$1*5 -> 50
A201: I | B201: =B200+1 -> 82 | C201: Parathom Pro, PAR 16, 6.1W | K201: No | L201: =$R$1*5 -> 50
C202: PARATHOM MR 16
C203: Low-voltage LED reflector lamps with retrofit plug base
A204: I | B204: =B201+1 -> 83 | C204: MR 16, 2.9W | K204: No | L204: =$R$1*5 -> 50
A205: I | B205: =B204+1 -> 84 | C205: MR 16, 4.6W | K205: No | L205: =$R$1*5 -> 50
A206: I | B206: =B205+1 -> 85 | C206: MR 16, 7.2W | K206: No | L206: =$R$1*5 -> 50
C208: Carried to Collection Page 57 EE
B209: Item | C209: Description | K209: Unit | L209: Qty | M209: Supply & Deliver Rate | N209: Install Rate | O209: Amount
C210: PARATHOM MR 11 12V
C211: Low-voltage LED reflector lamps with retrofit plug base
A212: I | B212: =B206+1 -> 86 | C212: MR 11, 2.3W | K212: No | L212: =$R$1*5 -> 50
C214: PARATHOM Advanced MR 11 12V
C215: Dimmable Low-voltage LED reflector lamps with retrofit
C216: plug base
A217: I | B217: =B212+1 -> 87 | C217: ADV MR 11, 3.1W | K217: No | L217: =$R$1*5 -> 50
C219: PARATHOM Advanced PAR 20
C220: Dimmable LED reflector lamps with retrofit screw base
A221: I | B221: =B217+1 -> 88 | C221: ADV PAR 20, 4.2W | K221: No | L221: =$R$1*5 -> 50
C223: PARATHOM Advanced PAR 30
C224: Dimmable LED reflector lamps with retrofit screw base
A225: I | B225: =B221+1 -> 89 | C225: ADV PAR 30, 6.7W | K225: No | L225: =$R$1*5 -> 50
C227: PARATHOM CLASSIC A
... 122 more rows

Sheet BILL10
P1: 108% | R1: 1000%
B2: Item | C2: Description | K2: Unit | L2: Qty | M2: Supply & Deliver Rate | N2: Install Rate | O2: Amount
C3: ELECTRICAL WORKS
C4: BILL OF QUANTITIES: BILL NO 10 OF 19
C5: LUMINAIRE ACCESSORIES
A6: J | C6: LIGHT POLES
C7: GALVANISED STEEL POLES:
C8: Body: Galvanised steel
C9: Mounting: Plinth Mounted or buried
C10: Finish: Raw
C11: Accessories: Access door complete with circuit breaker, gland
C12: plate, wiring, etc.
C13: Features: Tapered reduction or a flat reduction
C14: SANS: Manufactured from Grade S 355 steel in accordance5
C15: to SANS 657/1&3. Hot Dipped galvanised in accordance to
C16: SANS 121
C17: Colour: Matt Silver
C18: All poles shall be complete with all necessary fittings, fixtures and
C19: accessories required for the works.
C20: All poles are to be in accordance to the Ethekwini Municipality
C21: specification
C22: The poles shall be as per Regent Lighting or equal approved.
C23: STRAIGHT POLE
A24: J | B24: 1 | C24: Straight, 6m TL | K24: No | L24: =$R$1*5 -> 50
C25: STEPPED 1 REDUCTION
A26: J | B26: =B24+1 -> 2 | C26: Stepped 1, 6m TL | K26: No | L26: =$R$1*5 -> 50
A27: J | B27: =B26+1 -> 3 | C27: Stepped 1, 8m TL | K27: No | L27: =$R$1*5 -> 50
A28: J | B28: =B27+1 -> 4 | C28: Stepped 1, 9.2m TL | K28: No | L28: =$R$1*5 -> 50
C29: STEPPED 2 REDUCTION
A30: J | B30: =B28+1 -> 5 | C30: Stepped 2, 8.2m TL | K30: No | L30: =$R$1*5 -> 50
A31: J | B31: =B30+1 -> 6 | C31: Stepped 2, 9.2m TL | K31: No | L31: =$R$1*5 -> 50
C33: WOODEN POLES
C34: CCA POLES: LEVEL H4
C35: Copper chromium arsenic treated wooden pole, Level H4, SANS
C36: approved.
C37: The poles shall be suitable for transmission and lighting purposes
C38: and in accordance with the Ethekwini Municipality specifications.
C39: All poles shall be complete with all necessary fittings, fixtures and
C41: Carried to Collection Page 61 EE
B42: Item | C42: Description | K42: Unit | L42: Qty | M42: Supply & Deliver Rate | N42: Install Rate | O42: Amount
C43: accessories required for the works.
A44: J | B44: =B31+1 -> 7 | C44: 6m pole | K44: No | L44: =$R$1*5 -> 50
A45: J | B45: =B44+1 -> 8 | C45: 7m pole | K45: No | L45: =$R$1*5 -> 50
A46: J | B46: =B45+1 -> 9 | C46: 8m pole | K46: No | L46: =$R$1*5 -> 50
A47: J | B47: =B46+1 -> 10 | C47: 9m pole | K47: No | L47: =$R$1*5 -> 50
C49: LUMINAIRE COMPONENTS
C50: The luminaire components shall be as per Osram or equal approved
C52: STARTERS
A53: J | B53: =B47+1 -> 11 | C53: ST 111, Longlife (4…65W;80W) | K53: No | L53: =$R$1*5 -> 50
A54: J | B54: =B53+1 -> 12 | C54: ST 151, Longlife(4…22W) | K54: No | L54: =$R$1*5 -> 50
A55: J | B55: =B54+1 -> 13 | C55: DEOS ST 171 SAFETY, (36…65W) | K55: No | L55: =$R$1*5 -> 50
A56: J | B56: =B55+1 -> 14 | C56: DEOS ST 172 SAFETY, (18…22W) | K56: No | L56: =$R$1*5 -> 50
A57: J | B57: =B56+1 -> 15 | C57: DEOS ST 173 SAFETY, (15…32W) | K57: No | L57: =$R$1*5 -> 50
C59: TRANSFORMERS
A60: J | B60: =B57+1 -> 16 | C60: ET PARROT low voltage halogen lamps | K60: No | L60: =$R$1*5 -> 50
C62: CONTROL GEAR
C63: ELECTRONIC
C64: FLUORESCENT
A65: J | B65: =B60+1 -> 17 | C65: Quicktronic, (28 to 80W), T5 & T8 | K65: No | L65: =$R$1*10 -> 100
A66: J | B66: =B65+1 -> 18 | C66: Quicktronic, Dimmable: T8 | K66: No | L66: =$R$1*10 -> 100
A67: J | B67: =B66+1 -> 19 | C67: Quicktronic, Multiwatt: CFL | K67: No | L67: 100
A68: J | B68: =B67+1 -> 20 | C68: Quicktronic, Economic: CFL | K68: No | L68: 100
C70: LAMP HOLDERS
A71: J | B71: =B68+1 -> 21 | C71: RS Lampholder | K71: No | L71: =$R$1*10 -> 100
A72: J | B72: =B71+1 -> 22 | C72: ES Lampholder | K72: No | L72: 100
A73: J | B73: =B72+1 -> 23 | C73: BC Lampholder | K73: No | L73: 100
A74: J | B74: =B73+1 -> 24 | C74: Fluorescent fitting Lampholder | K74: No | L74: 100
A75: J | B75: =B74+1 -> 25 | C75: 400W HPS Lampholder | K75: No | L75: 100
A76: J | B76: =B75+1 -> 26 | C76: Brass Lampholder, ES or BC | K76: No | L76: 100
C80: Carried to Collection Page 61 EE
B81: Item | C81: Description | K81: Unit | L81: Qty | M81: Supply & Deliver Rate | N81: Install Rate | O81: Amount
C82: CAPACITORS
A83: J | B83: 27 | C83: 70W | K83: No | L83: =$R$1*5 -> 50
A84: J | B84: 28 | C84: 100W | K84: No | L84: 50
A85: J | B85: 29 | C85: 150W | K85: No | L85: 50
A86: J | B86: 30 | C86: 250W | K86: No | L86: 50
A87: J | B87: 31 | C87: 400W | K87: No | L87: 50
A88: J | B88: 32 | C88: 1000W | K88: No | L88: 50
A89: J | B89: 33 | C89: 2000W | K89: No | L89: 50
C91: IGNITORS
A92: J | B92: 34 | C92: 70W | K92: No | L92: =$R$1*5 -> 50
A93: J | B93: =B92+1 -> 35 | C93: 100W | K93: No | L93: 50
A94: J | B94: 36 | C94: 150W | K94: No | L94: 50
A95: J | B95: 37 | C95: 250W | K95: No | L95: 50
A96: J | B96: 38 | C96: 400W | K96: No | L96: 50
A97: J | B97: 39 | C97: 1000W | K97: No | L97: 50
A98: J | B98: 40 | C98: 2000W | K98: No | L98: 50
C101: DISCHARGE LAMP AND OTHER BALLASTS/IGNITOR/ TRANSFORMER/ CHOKE
A102: J | B102: =B98+1 -> 41 | C102: Metal halide (70 to 400W) | K102: No | L102: =$R$1*5 -> 50
A103: J | B103: =B102+1 -> 42 | C103: High Pressure Sodium (70 to 1000W) | K103: No | L103: =$R$1*5 -> 50
A104: J | B104: =B103+1 -> 43 | C104: Mecury vapour (80 to 400W) | K104: No | L104: =$R$1*5 -> 50
A105: J
C120: Carried to Collection Page 61 EE
B121: Item | C121: Description | O121: Amount
C122: ELECTRICAL WORKS
C123: BILL OF QUANTITIES: BILL NO 10 OF 19
C125: COLLECTION PAGE
C126: LUMINAIRE ACCESSORIES
C128: Page 58
C129: Page 59
C130: Page 60
C147: LUMINAIRE ACCESSORIES
C148: TOTAL CARRIED TO BILL SUMMARY Page

Sheet BILL11
P1: 107.61% | R1: 1000%
B2: Item | C2: Description | K2: Unit | L2: Qty | M2: Supply & Deliver Rate | N2: Install Rate | O2: Amount
C3: ELECTRICAL WORKS
A4: K | C4: BILL OF QUANTITIES: BILL NO 11 OF 19
C5: LIGHT SWITCHES
C6: STEEL COVER TYPE
C7: All switches shall be suitable for mounting in 100 x 50 x 50mm
C8: boxes and shall comply with SANS 1663 and shall bear the
C9: SANS mark. The light switches shall be rated 16A, 250V.
C10: The light switches shall be complete with a white switch/s on
C11: yoke, SS screws and WHITE STEEL coverplates(SANS 1084).
C12: The light switch shall include all necessary accessories to
C13: complete the works.
C14: The light switch shall be installed into existing extension
C15: boxes or into new galvanised steel boxes.
C16: The galvanised steel boxes are measured elsewhere.
C17: The light switches shall be as per Crabtree, Classic Range or
C18: equal approved.
A19: K | B19: 1 | C19: 16A, Single lever one way | K19: No | L19: =$R$1*20 -> 200
A20: K | B20: =B19+1 -> 2 | C20: 16A, Two lever one way | K20: No | L20: =$R$1*20 -> 200
A21: K | B21: 3 | C21: 16A, Three lever one way | K21: No | L21: 200
A22: K | B22: 4 | C22: 16A, Four lever one way | K22: No | L22: =$R$1*10 -> 100
A23: K | B23: 5 | C23: 16A, Five lever one way | K23: No | L23: =$R$1*5 -> 50
A24: K | B24: 6 | C24: 16A, Six lever one way | K24: No | L24: =$R$1*5 -> 50
A25: K | B25: 7 | C25: 16A, One lever one way with dimmer | K25: No | L25: 50
A26: K | B26: 8 | C26: 16A, Two lever one way with dimmer | K26: No | L26: 50
A27: K | B27: 9 | C27: 16A, One lever two way | K27: No | L27: =$R$1*10 -> 100
C29: All switches shall be suitable for mounting in 100 x 50 x 50mm
C30: boxes and shall comply with SANS 1663 and shall bear the
C31: SANS mark. The light switches shall be rated 16A, 250V.
C32: The light switches shall be complete with a white switch/s on
C33: yoke, SS screws and WHITE PLASTIC coverplates(SANS 1084).
C34: The light switch shall include all necessary accessories to
C35: complete the works.
C36: The light switch shall be installed into existing extension
C37: boxes or into new galvanised steel boxes.
C38: The galvanised steel boxes are measured elsewhere.
C39: The light switches shall be as per Crabtree, Classic Range or
C40: equal approved.
A41: K | B41: =B27+1 -> 10 | C41: 16A, Single lever one way | K41: No | L41: =$R$1*20 -> 200
A42: K | B42: =B41+1 -> 11 | C42: 16A, Two lever one way | K42: No | L42: 200
A43: K | B43: 12 | C43: 16A, Three lever one way | K43: No | L43: 200
A44: K | B44: 13 | C44: 16A, Four lever one way | K44: No | L44: =$R$1*10 -> 100
A45: K | B45: 14 | C45: 16A, Five lever one way | K45: No | L45: =$R$1*5 -> 50
A46: K | B46: 15 | C46: 16A, Six lever one way | K46: No | L46: 50
A47: K | B47: 16 | C47: 16A, One lever one way with dimmer | K47: No | L47: 50
A48: K | B48: 17 | C48: 16A, Two lever one way with dimmer | K48: No | L48: 50
A49: K | B49: 18 | C49: 16A, One lever two way | K49: No | L49: 10
C51: Carried to Collection Page 64 EE
B52: Item | C52: Description | K52: Unit | L52: Qty | M52: Supply & Deliver Rate | N52: Install Rate | O52: Amount
C53: INDUSTRIAL LIGHT SWITCHES
C54: All switches shall be suitable for mounting in 75 x 75mm
C55: boxes and shall comply with SANS 1663 and shall bear the
C56: SANS mark. The light switches shall be rated 16A, 250V.
C57: The light switches shall be complete with a white switch/s on
C58: yoke and steel coverplates(White or Orange)(SANS 1084).
C59: The light switch shall include all necessary accessories to
C60: complete the works.
C61: The light switch shall be installed into existing extension
C62: boxes or into new galvanised steel boxes.
C63: The galvanised steel boxes are measured elsewhere.
C64: The light switches shall be as per Crabtree, Classic Range or
C65: equal approved.
A66: K | B66: =B49+1 -> 19 | C66: 16A, Single lever one way | K66: No | L66: =$R$1*5 -> 50
A67: K | B67: =B66+1 -> 20 | C67: 16A, Two lever one way | K67: No | L67: =$R$1*5 -> 50
A68: K | B68: =B67+1 -> 21 | C68: 16A, Three lever one way | K68: No | L68: 50
A69: K | B69: =B68+1 -> 22 | C69: 16A, Three lever two way | K69: No | L69: 50
C71: INDUSTRIAL WATER PROOF LIGHT SWITCHES
C72: All switches shall be suitable for mounting in 119 x 83mm
C73: weatherproof surface boxes and shall comply with SANS 1663
C74: and shall bear the SANS mark.
C75: The light switches shall be rated 16A, 250V.
C76: The light switches shall be complete with a white switch/s on
C77: yoke and coverplates(White or Orange)(SANS 1084).
C78: The light switch shall include all necessary accessories to
C79: complete the works.
C80: The light switch shall be installed complete with new
C81: extension boxes
C82: The light switches shall be as per Crabtree, Classic Range or
C83: equal approved.
C85: STEEL TYPE
A86: K | B86: =B69+1 -> 23 | C86: 16A, Single lever one way | K86: No | L86: =$R$1*5 -> 50
A87: K | B87: =B86+1 -> 24 | C87: 16A, Two lever one way | K87: No | L87: 50
A88: K | B88: =B87+1 -> 25 | C88: 16A, Three lever one way | K88: No | L88: 50
A89: K | B89: =B88+1 -> 26 | C89: Limit Switches | K89: No | L89: 50
C91: PLASTIC TYPE
A92: K | B92: =B89+1 -> 27 | C92: 16A, Single lever one way | K92: No | L92: =$R$1*10 -> 100
A93: K | B93: =B92+1 -> 28 | C93: 16A, Two lever one way | K93: No | L93: 100
A94: K | B94: =B93+1 -> 29 | C94: 16A, Three lever one way | K94: No | L94: 100
C109: Carried to Collection Page 64 EE
B110: Item | C110: Description | K110: Unit | L110: Qty | M110: Supply & Deliver Rate | N110: Install Rate | O110: Amount
C111: WIRELESS LIGHT SWITCHES
C112: All switches shall be suitable for mounting in 75 x 75mm
C113: boxes and shall comply with SANS 1663 and shall bear the
C114: SANS mark. The light switches shall be rated 5A, 220V.
C115: The wireless light switch shall include all necessary accessories to
C116: complete the works. (Batteries, etc)
C117: The wireless light switches shall be as per QwikSwitch or
C118: equal approved.
A120: K | B120: 30 | C120: Receiver and relay. Max load 5A. Device is controllable from the WiFi
C121: Bridge remotely. Input and output supply at 220Vac, 50Hz. Radio frequency 868MHz.
C122: 30m Range through walls and floors, 100m line of site | K122: No | L122: =$R$1*5 -> 50
A124: K | B124: 31 | C124: 2 button wireless transmitter. Input supply 1 x CR2032 Battery to be included.
C125: From factor moulded casing 80mm (w) x 123mm (L) x 10mm (H)
C126: Radio frequency 868MHz.
C127: 30m Range through walls and floors, 100m line of site | K127: No | L127: =$R$1*5 -> 50
C131: Carried to Collection Page 64 EE
B132: Item | C132: Description | O132: Amount
C133: ELECTRICAL WORKS
C134: BILL OF QUANTITIES: BILL NO 11 OF 19
C136: COLLECTION PAGE
C138: LIGHT SWITCHES
C140: Page 62
C141: Page 63
C142: Page 64
C169: LIGHT SWITCHES:
C170: TOTAL CARRIED TO BILL SUMMARY Page 92 EE

Sheet BILL12
P1: 107.61% | R1: 1000%
B2: Item | C2: Description | K2: Unit | L2: Qty | M2: Supply & Deliver Rate | N2: Install Rate | O2: Amount
C3: ELECTRICAL WORKS
A4: L | C4: BILL OF QUANTITIES: BILL NO 12 OF 19
C5: POWERSKIRTING,
C6: OUTLETS & ACCESSORIES
C7: PVC TYPE
C8: Supply, deliver and install PVC type powerskirting installed
C9: surface on wall surface, bricking, concrete, desktop,etc.
C10: The powerskirting shall be suitable for low voltage(600/1000V)
C11: conductors and 16A, 250V switched socket outlets well as for .
C12: telecommunication, data and power points.
C13: The powerskirting shall be supplied complete with all covers,
C14: necessary bends, elbows, corner pieces, tees, droppers, end
C15: caps and all other necessary fittings, fixtures and accessories
C16: required for the works.
C17: All outlets(sso), telephone, data, power, etc shall also be
C18: installed complete with covers, cradles, yokes, etc to complete
C19: the works.
C20: The powerskirting shall be as Legrand (Colour White) or
C21: equal approved. All outlets shall also be of the Legrand
C22: range or equal approved and compatible with the powerskirting.
C23: POWERSKIRTING
A24: L | B24: 1 | C24: Two Compartment with cover and accessories, etc | K24: m | L24: =$R$1*100 -> 1000
A25: L | B25: =B24+1 -> 2 | C25: Three Compartment with cover and accessories, etc | K25: m | L25: =$R$1*50 -> 500
C27: POWERSKIRTING OUTLETS
A28: L | B28: =B25+1 -> 3 | C28: 16A, Single switched socket outlet - Normal - White | K28: No | L28: =$R$1*100 -> 1000
A29: L | B29: =B28+1 -> 4 | C29: 16A, Single switched socket outlet - Dedicated - RED | K29: No | L29: 1000
A30: L | B30: =B29+1 -> 5 | C30: 16A, Single switched socket outlet - UPS - Blue | K30: No | L30: 1000
A31: L | B31: =B30+1 -> 6 | C31: RJ11 Telephone outlets | K31: No | L31: 1000
A32: L | B32: =B31+1 -> 7 | C32: RJ45 Data outlets | K32: No | L32: 1000
A33: L | B33: =B32+1 -> 8 | C33: Blank Outlets | K33: No | L33: 1000
C34: ACCESSORIES
C35: The following accessories are to be supplied, delivered and
C36: installed for existing powerskirting that require damaged,
C37: missing or replacements.
C38: These items however will form part of the costing per m
C39: length of new powerskirting systems and as such will not be
C40: paid for separately with the exception of the internal divider.
A41: L | B41: 9 | C41: Elbows | K41: Item | L41: =$R$1*60 -> 600
A42: L | B42: 10 | C42: Internal/External bends | K42: Item | L42: =$R$1*60 -> 600
A43: L | B43: 11 | C43: End Caps | K43: Item | L43: =$R$1*100 -> 1000
A44: L | B44: 12 | C44: Internal divider | K44: m | L44: =$R$1*50 -> 500
C46: POWERSKIRTING, OUTLETS & ACCESSORIES
C47: TOTAL CARRIED TO BILL SUMMARY Page

Sheet BILL13
P1: 107.61% | R1: 1000%
B2: Item | C2: Description | K2: Unit | L2: Qty | M2: Supply & Deliver Rate | N2: Install Rate | O2: Amount
C3: ELECTRICAL WORKS
A4: M | C4: BILL OF QUANTITIES: BILL NO 13 OF 19
C5: SWITCHED SOCKET OUTLETS,
C6: ENCLOSURES & ACCESSORIES
C7: STEEL COVER TYPE
C8: All switches shall be suitable for mounting in 100 x 100 x 50mm
C9: boxes and shall comply with SANS 164 and shall bear the
C10: SANS mark. The switches shall be rated 16A, 250V.
C11: The switches shall be complete with a white switch/s on
C12: yoke, SS screws and WHITE STEEL coverplates(SANS 1084).
C13: The switch shall include all necessary accessories to
C14: complete the works.
C15: The switch shall be installed into existing extension
C16: boxes or into new galvanised steel boxes.
C17: The galvanised steel boxes are measured elsewhere.
C18: The switches shall be as per Crabtree, Classic Range or
C19: equal approved.
A20: M | B20: 1 | C20: 16A, Single switched socket outlet | K20: No | L20: =$R$1*100 -> 1000
A21: M | B21: =B20+1 -> 2 | C21: 16A, Double switched socket outlet | K21: No | L21: 1000
A22: M | B22: =B21+1 -> 3 | C22: 16A, Single switched socket outlet - Dedicated - RED | K22: No | L22: 1000
C23: Switched socket outlet on 100 x 50 x 50mm extension boxes
A24: M | B24: =B22+1 -> 4 | C24: 16A, Single switched socket outlet | K24: No | L24: =$R$1*50 -> 500
A25: M | B25: =B24+1 -> 5 | C25: 16A, Single switched socket outlet - Dedicated - RED | K25: No | L25: =$R$1*50 -> 500
C27: PLASTIC COVER TYPE
C28: All switches shall be suitable for mounting in 100 x 50 x 50mm
C29: boxes and shall comply with SANS 1664 and shall bear the
C30: SANS mark. The switches shall be rated 16A, 250V.
C31: The switches shall be complete with a white switch/s on
C32: yoke, SS screws and WHITE PLASTIC coverplates.
C33: The switches shall include all necessary accessories to
C34: complete the works.
C35: The switches shall be installed into existing extension
C36: boxes or into new galvanised steel boxes.
C37: The galvanised steel boxes are measured elsewhere.
C38: The light switches shall be as per Crabtree, Classic Range or
C39: equal approved.
C41: Carried to Collection Page 72 EE
B42: Item | C42: Description | K42: Unit | L42: Qty | M42: Supply & Deliver Rate | N42: Install Rate | O42: Amount
A43: M | B43: =B25+1 -> 6 | C43: 16A, Single switched socket outlet | K43: No | L43: =$R$1*100 -> 1000
A44: M | B44: =B43+1 -> 7 | C44: 16A, Double switched socket outlet | K44: No | L44: 1000
A45: M | B45: =B44+1 -> 8 | C45: 16A, Single switched socket outlet - Dedicated - RED | K45: No | L45: 1000
A46: M | B46: =B45+1 -> 9 | C46: 16A, VETi 2 Double RSA & Double RSA V-Slim Socket Outlet - White | K46: No | L46: 1000
A47: M | B47: =B46+1 -> 10 | C47: 16A, VETi 2 Switched Socket with Single RSA & 3 x RSA V-Slim - White | K47: No | L47: 1000
C48: Switched socket outlet on 100 x 50 x 50mm extension boxes
A49: M | B49: =B47+1 -> 11 | C49: 16A, Single switched socket outlet | K49: No | L49: =$R$1*50 -> 500
A50: M | B50: =B49+1 -> 12 | C50: 16A, Single switched socket outlet - Dedicated - RED | K50: No | L50: 500
C52: INDUSTRIAL SWITCHED SOCKET OUTLETS
C53: All switches shall be suitable for mounting in 119 x 83mm
C54: boxes and shall comply with SANS 1664 and shall bear the
C55: SANS mark. The switches shall be rated 16A, 250V.
C56: The switches shall be complete with a white switch/s on
C57: yoke and steel coverplates(White or Orange).
C58: The switch shall include all necessary accessories to
C59: complete the works.
C60: The switches shall be installed complete with extension
C61: boxes.
C62: The switches shall be as per Crabtree, Classic Range or
C63: equal approved.
C65: STEEL TYPE
A66: M | B66: =B50+1 -> 13 | C66: 16A, Single switched socket outlet | K66: No | L66: =$R$1*10 -> 100
A67: M | B67: =B66+1 -> 14 | C67: 16A, Double switched socket outlet | K67: No | L67: =$R$1*10 -> 100
C69: INDUSTRIAL WATER PROOF LIGHT SWITCHES
C70: All switches shall be suitable for mounting in 119 x 83mm
C71: weatherproof surface boxes and shall comply with SANS 1664
C72: and shall bear the SANS mark.
C73: The switches shall be rated 16A, 250V.
C74: The switches shall be complete with a white switch/s on
C75: yoke and coverplates(White or Orange).
C76: The switch shall include all necessary accessories to
C77: complete the works.
C78: The switches shall be installed complete with extension
C79: boxes.
C80: The light switches shall be as per Crabtree, Classic Range or
C81: equal approved.
C83: Carried to Collection Page 72 EE
B84: Item | C84: Description | K84: Unit | L84: Qty | M84: Supply & Deliver Rate | N84: Install Rate | O84: Amount
C85: STEEL TYPE
A86: M | B86: =B67+1 -> 15 | C86: 16A, Single switched socket outlet | K86: No | L86: =$R$1*5 -> 50
C88: PLASTIC TYPE
A89: M | B89: =B86+1 -> 16 | C89: 16A, Single switched socket outlet | K89: No | L89: =$R$1*5 -> 50
C91: General
A92: M | B92: =B89+1 -> 17 | C92: Snapper - FBLP 31 - 8 way multiplug( 4 x 16A, 4 x 5A, 0.5m cord)
C93: with surge protection | K93: No | L93: =$R$1*5 -> 50
A94: M | B94: =B92+1 -> 18 | C94: 5A plugtops | K94: No | L94: =$R$1*50 -> 500
A95: M | B95: =B94+1 -> 19 | C95: 16A plugtops - White | K95: No | L95: 500
A96: M | B96: =B95+1 -> 20 | C96: 16A plugtops - Red | K96: No | L96: 500
A97: M | B97: =B96+1 -> 21 | C97: 16A plugtops - Blue | K97: No | L97: =$R$1*5 -> 50
C99: GENERAL INDUSTRIAL SWITCHED SOCKET OUTLETS
C100: AND PLUG TOPS
C101: According to SANS / IEC 60309-1+2, 1999
C102: PLUGS AND SOCKETS
C103: The units shall bear the SABS authorisation mark
C104: CEE ROUND TYPE PLUGS & SOCKETS: MOULDED
C105: The outlets shall be as per Powermite or equal approved.
A106: M | B106: =B97+1 -> 22 | C106: Ref Code: A3001: 250V, 32A, IP67 switched socket outlet | K106: No | L106: =$R$1*5 -> 50
A107: M | B107: =B106+1 -> 23 | C107: Ref Code: A0138: 250V, 32A, IP67 moulded plugtop | K107: No | L107: 50
A108: M | B108: 24 | C108: Ref Code: A3002: 400V, 16A, 4 PIN, IP67 switched socket outlet | K108: No | L108: 50
A109: M | B109: 25 | C109: Ref Code: A0140: 400V, 16A, 4 PIN, IP67 moulded plugtop | K109: No | L109: 50
A110: M | B110: 26 | C110: Ref Code: A3009: 400V, 32A, 5 PIN, IP67 switched socket outlet | K110: No | L110: 50
A111: M | B111: 27 | C111: Ref Code: A0135: 400V, 32A, 5 PIN, IP67 moulded plugtop | K111: No | L111: 50
A112: M | B112: 28 | C112: Ref Code: A3102: 400V, 63A, 5 PIN, IP67 switched socket outlet | K112: No | L112: 50
A113: M | B113: 29 | C113: Ref Code: A0134: 400V, 63A, 5 PIN, IP67 moulded plugtop | K113: No | L113: 50
C114: EXTENSION BOXES
C115: All extension boxes shall be of the galvanised steel type and
C116: shall be of 1mm thickness. The boxes shall be suitable for
C117: standard switches(lights and plugs) application.
C118: The boxes shall be in accordance with SANS 1085 and the
C119: plates with SANS 1084
A120: M | B120: =B113+1 -> 30 | C120: 100 x 100 x 50mm | K120: No | L120: 100
A121: M | B121: =B120+1 -> 31 | C121: 100 x 50 x 50mm | K121: No | L121: 100
C123: Carried to Collection Page 72 EE
B124: Item | C124: Description | K124: Unit | L124: Qty | M124: Supply & Deliver Rate | N124: Install Rate | O124: Amount
C125: EXTENSION BOXES
C126: All PVC extension boxes shall be suitable for standard switches
C127: (lights and plugs) application.
C128: The boxes shall be in accordance with SANS 1085 and the
C129: plates with SANS 1084
C130: The boxes shall be of ALLBRO type or equal approved.
A131: M | B131: =B121+1 -> 32 | C131: Ref Code: 04 - 788: Box: H62 x W107 x D51mm | K131: No | L131: =$R$1*5 -> 50
A132: M | B132: =B131+1 -> 33 | C132: Ref Code: 04 - 789: Box: H109 x W108 x D51mm | K132: No | L132: 50
C133: BLANK COVER PLATES - WHITE
C134: STEEL TYPE
A135: M | B135: =B132+1 -> 34 | C135: 100 x 100 x 50mm | K135: No | L135: =$R$1*100 -> 1000
A136: M | B136: =B135+1 -> 35 | C136: 100 x 50 x 50mm | K136: No | L136: 1000
C137: PLASTIC TYPE
A138: M | B138: =B136+1 -> 36 | C138: 100 x 100 x 50mm | K138: No | L138: =$R$1*100 -> 1000
A139: M | B139: =B138+1 -> 37 | C139: 100 x 50 x 50mm | K139: No | L139: 1000
C140: ELECTRICAL YORK BOXES
C141: The electrical york(installation enclosure) boxes shall be of the
C142: outdoor weatherproof socket outlet enclosure type.
C143: The box shall be suitable for surface or semi-flush installation.
C144: The box is to have a sliding lid which is capable of being closed
C145: while the plug is in the socket.
C146: The box shall be constructed of polyester material(DMC).
C147: The boxes shall be of ABB/ALLBRO type or equal approved.
A148: M | B148: =B139+1 -> 38 | C148: 100 x 100mm type box | K148: No | L148: =$R$1*5 -> 50
A149: M | B149: =B148+1 -> 39 | C149: 100 x 50mm type box | K149: No | L149: 50
C150: ELECTRICAL METER BOXES: YORK TYPE
C151: SINGLE PHASE - SMB
C152: The electrical meter york(installation enclosure) boxes shall be of
C153: the outdoor weatherproof single kwh meter enclosure type.
C154: The box shall be suitable for standard kWh meter.
C155: The mounting shall be„ surface or semi-flush installation.
C156: It shall have square or triangular securing screw and
C157: a stand off for circuit breaker , a circuit breaker reset rod and
C158: pole mount brackets. „ Material - Polyester (DMC)
C159: The boxes shall be of ABB/ALLBRO type or equal approved.
A160: M | B160: =B149+1 -> 40 | C160: Single Phase Meter Box - SMB | K160: No | L160: =$R$1*5 -> 50
C162: Carried to Collection Page 72 EE
B163: Item | C163: Description | K163: Unit | L163: Qty | M163: Supply & Deliver Rate | N163: Install Rate | O163: Amount
C164: THREE PHASE - DMB
C165: The electrical meter york(installation enclosure) boxes shall be of
C166: the outdoor weatherproof to house 3 x single phase kwh.
C167: The box shall be suitable for standard kWh meters.
C168: The meter box mounting shall be on a baseplate.
C169: The mounting shall be„ surface or semi-flush installation.
C170: The meter box shall have meter reading window.
C171: It shall have square or triangular securing screw and
C172: a stand off for circuit breaker , a circuit breaker reset rod and
C173: pole mount brackets and circuit breaker mounting facility.
C174: Material - Polyester (DMC)
C175: The boxes shall be of ABB/ALLBRO type or equal approved.
A176: M | B176: =B160+1 -> 41 | C176: Three phase Meter Box - DMB | K176: No | L176: =$R$1*5 -> 50
C178: SWITCH DISCONNECTOR - ISOLATOR - BOXES
C179: The isolator housing box shall be weatherproof with pad
C180: lockable facility. The box shall have isolator mounting screws.
C181: Material - Polyester (DMC)
C182: The boxes shall be of ABB/ALLBRO type or equal approved.
A183: M | B183: =B176+1 -> 42 | C183: Isolator housing box enclosure | K183: No | L183: =$R$1*5 -> 50
C185: INSTALLATION ENCLOSURES
C186: INDUSTRIAL: WEATHERTIGHT BOXES
C187: Industrial general purpose weatherproof enclosures.
C188: The box shall be suitable for surface or semi-flush installation.
C189: The box is to have a sliding lid which is capable of being closed
C190: while the plug/cable is in the socket. To include a Device plate
C191: in DMC and pole mount brackets.
C192: Material - Polyester (DMC)
C193: The boxes shall be of ABB/ALLBRO type or equal approved.
A194: M | B194: =B183+1 -> 43 | C194: J1 Range | K194: No | L194: =$R$1*5 -> 50
A195: M | B195: =B194+1 -> 44 | C195: J2 Range | K195: No | L195: 50
A196: M | B196: =B195+1 -> 45 | C196: J3 Range | K196: No | L196: 50
A197: M | B197: =B196+1 -> 46 | C197: J4 Range | K197: No | L197: 50
C202: Carried to Collection Page 72 EE
B203: Item | C203: Description | K203: Unit | L203: Qty | M203: Supply & Deliver Rate | N203: Install Rate | O203: Amount
C204: GENERAL: WEATHERTIGHT BOXES
C205: General purpose weatherproof connection/enclosures.
C206: The box shall be suitable for surface or semi-flush installation.
C207: The box is to have a sliding lid which is capable of being closed
C208: while the plug/cable is in the socket. To include a Device plate
C209: in DMC and pole mount brackets.
C210: Housing Material - Polyester (DMC)
C211: The boxes shall be of ABB/ALLBRO type or equal approved.
A212: M | B212: =B197+1 -> 47 | C212: U2 Range | K212: No | L212: =$R$1*5 -> 50
A213: M | B213: =B212+1 -> 48 | C213: U3 Range | K213: No | L213: 50
A214: M | B214: 49 | C214: U4 Range | K214: No | L214: 50
A215: M | B215: 50 | C215: U5 Range | K215: No | L215: 50
A216: M | B216: 51 | C216: U6 Range | K216: No | L216: 50
A217: M | B217: 52 | C217: U7 Range | K217: No | L217: 50
... 32 more rows

Sheet BILL14
P1: 107.70% | R1: 1000%
B2: Item | C2: Description | K2: Unit | L2: Qty | M2: Supply & Deliver Rate | N2: Install Rate | O2: Amount
C3: ELECTRICAL WORKS
A4: N | C4: BILL OF QUANTITIES: BILL NO 14 OF 19
C5: GEYSER SPARES & ACCESSORIES
C6: Supply, deliver and install domestic geyser spares and accessories.
C7: The units shall be suitable for application at 250V, 50Hz and
C8: shall bear the SANS safety mark and in accordance with SANS
C9: 10254 Geyser Installation Specifications.
C10: The works shall include for the isolation, disconnection & removal
C11: of the existing equipment and replacement with the new
C12: equipment. It shall also include the disconnection and reconnection
C13: of the geyser.
C14: The equipment shall include all necessary fittings, fixtures and
C15: accessories to complete the works.
C16: The equipment shall be as per Kwikot or equal approved.
C17: SINGLE PHASE
A18: N | B18: 1 | C18: 2kW spiral element with thermostat pocket | K18: No | L18: =$R$1*10 -> 100
A19: N | B19: =B18+1 -> 2 | C19: 3kW spiral element with thermostat pocket | K19: No | L19: =$R$1*10 -> 100
A20: N | B20: 3 | C20: 4kW spiral element with thermostat pocket | K20: No | L20: 100
A21: N | B21: 4 | C21: Thermostat 20A | K21: No | L21: =$R$1*20 -> 200
A22: N | B22: 5 | C22: 2kW Industrial Immersion element with thermostat pocket | K22: No | L22: =$R$1*10 -> 100
A23: N | B23: 6 | C23: 3kW Industrial Immersion element with thermostat pocket | K23: No | L23: 100
A24: N | B24: 7 | C24: 4kW Industrial Immersion element with thermostat pocket | K24: No | L24: 100
C26: THREE PHASE
A27: N | B27: =B24+1 -> 8 | C27: 6kW element | K27: No | L27: =$R$1*10 -> 100
C29: GENERAL
A30: N | B30: =B27+1 -> 9 | C30: Geyser Gasket | K30: No | L30: =$R$1*10 -> 100
C37: GEYSER SPARES & ACCESSORIES
C38: TOTAL CARRIED TO BILL SUMMARY Page 92

Sheet BILL15
P1: 107.70% | R1: 1000%
B2: Item | C2: Description | K2: Unit | L2: Qty | M2: Supply & Deliver Rate | N2: Install Rate | O2: Amount
C3: ELECTRICAL WORKS
A4: O | C4: BILL OF QUANTITIES: BILL NO 15 OF 19
C5: HYDROBOILS
C6: Supply, deliver and install wall mounted hydroboils.
C7: The units shall be suitable for application at 250V, 50Hz and
C8: shall bear the SANS safety mark.
C9: The units shall be fully automatic, energy efficient, electronic
C10: controls, provide instant boiling water, designed to operate
C11: within 3°C of boiling point with thermal temperature control,
C12: energy conserving tap, two way tap control, steam free, white
C13: epoxy coated, concealed plumbing and electrical connections
C14: and a flexible 2m electrical cord with plugtop.
C15: The equipment shall include all necessary fittings, fixtures and
C16: accessories to complete the works.
C17: The hydroboils shall be as per Franke or equal approved
A18: O | B18: 1 | C18: 2.5 litre white epoxy hydroboil | K18: No | L18: =$R$1*1 -> 10
A19: O | B19: =B18+1 -> 2 | C19: 5 litre white epoxy hydroboil | K19: No | L19: =$R$1*5 -> 50
A20: O | B20: =B19+1 -> 3 | C20: 7.5 litre white epoxy hydroboil | K20: No | L20: =$R$1*1 -> 10
A21: O | B21: =B20+1 -> 4 | C21: 10 litre white epoxy hydroboil | K21: No | L21: 10
A22: O | B22: =B21+1 -> 5 | C22: 15 litre white epoxy hydroboil | K22: No | L22: 10
A23: O | B23: 6 | C23: 25 litre white epoxy hydroboil | K23: No | L23: 10
C25: The hydroboils shall be as per Kwikot or equal approved
A26: O | B26: 7 | C26: 2.5 litre white epoxy hydroboil | K26: No | L26: =$R$1*1 -> 10
A27: O | B27: =B26+1 -> 8 | C27: 5 litre white epoxy hydroboil | K27: No | L27: =$R$1*5 -> 50
A28: O | B28: =B27+1 -> 9 | C28: 7.5 litre white epoxy hydroboil | K28: No | L28: =$R$1*1 -> 10
A29: O | B29: =B28+1 -> 10 | C29: 10 litre white epoxy hydroboil | K29: No | L29: 10
A30: O | B30: =B29+1 -> 11 | C30: 15 litre white epoxy hydroboil | K30: No | L30: 10
A31: O | B31: 12 | C31: 25 litre white epoxy hydroboil | K31: No | L31: 10
C38: HYDROBOILS
C39: TOTAL CARRIED TO BILL SUMMARY Page 92

Sheet BILL16
P1: 107.70% | R1: 1000%
B2: Item | C2: Description | K2: Unit | L2: Qty | M2: Supply & Deliver Rate | N2: Install Rate | O2: Amount
C3: ELECTRICAL WORKS
A4: P | C4: BILL OF QUANTITIES: BILL NO 16 OF 19
C5: FANS, DRYERS & EXTRACTORS
C6: Supply, deliver and install industrial ceiling and wall fans, wall
C7: mounted extractor fans and industrial hand dryers.
C8: The units shall be suitable for application at 250V, 50Hz and
C9: shall bear the SANS safety mark.
C10: The equipment shall include all necessary fittings, fixtures and
C11: accessories to complete the works.
C13: CEILING FAN
C14: The unit shall be a 4 speed, 3 blade industrial ceiling fan with a
C15: diameter of 1200/1400mm and a 450mm long down rod.
C16: A steel shackle is to be fixed to the upper end of the down rod by
C17: means of a nut and bolt which is complete with resilient rubber
C18: bush and a 'U' shaped ceiling hook.
C19: Both upper and lower fixings on the down rod together with the
C20: electrical connections are to be concealed behind plastic canopies.
C21: It shall have a permanent capacitor motor with external squirrel
C22: cage rotor in a lightweight steel housing.
C23: The stator and rotor is to be constructed from high grade
C24: silicon steel lamination stampings.
C25: The unit shall be complete with surface mounted speed regulator
C26: complete with 2 inserts for light switches.
C27: The unit shall be as Luft or equal approved.
A28: P | B28: 1 | C28: 1200mm (LCF48) ceiling fan complete with speed regulator | K28: No | L28: =$R$1*5 -> 50
A29: P | B29: =B28+1 -> 2 | C29: 1400mm (LCF56) ceiling fan complete with speed regulator | K29: No | L29: =$R$1*5 -> 50
A30: P | B30: =B29+1 -> 3 | C30: 4 speed (CF56) regulator | K30: No | L30: =$R$1*5 -> 50
C38: Carried to Collection Page 78 EE
B39: Item | C39: Description | K39: Unit | L39: Qty | M39: Supply & Deliver Rate | N39: Install Rate | O39: Amount
C40: WALL MOUNTED AIR CIRCULATORS (FAN)
C41: The unit shall be a 3 speed, 2 blade industrial wall fan with a
C42: diameter of 730mm. The unit shall be robust, reliable, efficient,
C43: adjustible height and oscillation, low noise and finished in dark
C44: grey paint.
C45: The unit shall be complete with a wall arm mounting bracket,
C46: fittings, fixtures and accessories for the works.
C47: At speed setting 3 the unit shall operate at 1400rpm, 2.95 volume
C48: m/sec, 56dBA and 200W.
C49: The unit shall be as Luft or equal approved.
A51: P | B51: 4 | C51: Wall circulator(FB65) (fan) | K51: No | L51: =$R$1*5 -> 50 | Q51: EIS
C52: PROPELLER(EXTRACTOR) FAN
C53: The complete fan assembly is to be mounted on an octagonal
C54: pressed steel mounting plate.
C55: The impeller shall comprise of four heavy gauge
C56: pressed steel blades bolted to the die cast aluminium alloy hub,
C57: dynamically balanced after assembly.
C58: The unit shall have four rigid mild steel arms provided for the
C59: fixing of the motor and impeller to the mounting plate by way
C60: of special vibration absorbers. The unit shall have a side wire
C61: guard to prevent accidental contact and air borne objects
C62: from passing through the fan.
C63: The unit shall be IP54 rated with sealed for life ball bearings and
C64: class ‘E’ insulation to BS2613/1970.
C65: The unit shall be suitable for operation in ambient temperatures
C66: between –20ºC and 40ºC in relative humidity up to 95%.
C67: The unit shall be rated at 250V, 50Hz and supplied with a 1m
C68: electrical cord.
C69: The units, louvres and cowls shall be as Luft or equal approved.
A70: P | B70: =B51+1 -> 5 | C70: 300mm, (FAC30/4), 130W, 52dBA, Extractor Fan with guard | K70: No | L70: =$R$1*5 -> 50
A71: P | B71: =B70+1 -> 6 | C71: 400mm, (FAC40/4), 200W, 62dBA, Extractor Fan with guard | K71: No | L71: =$R$1*5 -> 50
C73: LOUVRE SHUTTER
A74: P | B74: =B71+1 -> 7 | C74: Louvre shutter for FAC30/4 Extractor Fan | K74: No | L74: =$R$1*5 -> 50
A75: P | B75: =B74+1 -> 8 | C75: Louvre shutter for FAC40/4 Extractor Fan | K75: No | L75: =$R$1*5 -> 50
C77: Carried to Collection Page 78 EE
B78: Item | C78: Description | K78: Unit | L78: Qty | M78: Supply & Deliver Rate | N78: Install Rate | O78: Amount
C79: WALL COWL
A80: P | B80: 9 | C80: Wall Cowl for FAC30/4 Extractor Fan | K80: No | L80: =$R$1*5 -> 50
A81: P | B81: =B80+1 -> 10 | C81: Wall Cowl for FAC40/4 Extractor Fan | K81: No | L81: =$R$1*5 -> 50
C83: AUTOMATIC HAND DRYER
C84: The unit shall be an automatic hand dryer with robust, high impact
C85: resistant body. The unit shall be sensor operated.
C86: The unit shall have the following features:
C87: Rated Power - 2500 watts
C88: High grade brushed stainless steel body
C89: Maintenance free dryer - capacitor initiated for quick starts
C90: 360 degree revolving nozzle
C91: Power cut off automatically in case of irregular use of over 90s
C92: Voltage - 207V-253V~50Hz
C93: Digital circuit and infrared sensor
C94: Weight - 5.9kg
C95: Air Velocity - 30m/s
C96: Air Volume - 270m3/h
C97: The unit shall be complete with all necessary mounting brackets,
C98: fittings, fixtures and accessories for the works.
C99: The unit shall be as Luft or equal approved.
A100: P | B100: 11 | C100: Costa: CLX Automatic hand dryer | K100: No | L100: =$R$1*5 -> 50
C116: Carried to Collection Page 78 EE
B117: Item | C117: Description | K117: Unit | L117: Qty | M117: Supply & Deliver Rate | N117: Install Rate | O117: Amount
C118: ELECTRICAL WORKS
C119: BILL OF QUANTITIES: BILL NO 16 OF 19
C121: COLLECTION
C122: FANS, DRYERS & EXTRACTORS
C124: Page 75
C125: Page 76
C126: Page 77
C150: FANS, DRYERS & EXTRACTORS
C151: TOTAL CARRIED TO BILL SUMMARY Page

Sheet BILL17
P1: 107.70% | R1: 1000%
B2: Item | C2: Description | K2: Unit | L2: Qty | M2: Supply & Deliver Rate | N2: Install Rate | O2: Amount
C4: ELECTRICAL WORKS
A5: Q | C5: BILL OF QUANTITIES: BILL NO 17 OF 19
C7: OCCUPANCY SENSORS
C8: Supply, deliver and install ceiling mounted occupancy sensors.
C9: The units shall be suitable for application at 250V, 50Hz and
C10: be UL, cUL listed.
C11: The units shall be dual technology sensors with self adaptive
C12: technology. There shall be no manual adjustment required and a
C13: non volatile memory setting for sensor setting.
C14: The unit shall be complete with a quick to install connector
C15: (QTI) and universal voltage power pack(UVP).
C16: The equipment shall include all necessary fittings, fixtures and
C17: accessories to complete the works.
C18: The units shall be as Hubbell Building Automation or equal
C19: approved.
C21: GENERAL LIGHTING SENSORS
C22: OMNIDT
C23: Dual Technology Ceiling Sensor with self adaptive technology
A24: Q | B24: 1 | C24: OMNIDT500, with QTI & UVP, Colour Off White, Sensor
C25: Coverage Area 46m2 | K25: No | L25: =$R$1*5 -> 50
A26: Q | B26: =B24+1 -> 2 | C26: OMNIDT1000, with QTI & UVP, Colour Off White, Sensor
C27: Coverage Area 93m2 | K27: No | L27: =$R$1*5 -> 50
A28: Q | B28: =B26+1 -> 3 | C28: OMNIDT2000, with QTI & UVP, Colour Off White, Sensor
C29: Coverage Area 186m2 | K29: No | L29: =$R$1*5 -> 50
C38: Carried to Collection Page 81 EE
B39: Item | C39: Description | K39: Unit | L39: Qty | M39: Supply & Deliver Rate | N39: Install Rate | O39: Amount
C40: HIGHBAY FLUORESCENT OCCUPANCY SENSOR
C41: Industrial T5 & T8 fixtures
C42: Supply, deliver and install ceiling mounted occupancy sensors.
C43: The units shall be suitable for application at 250V, 50Hz and
C44: be ETL, UL, cUL and Title 24 compliant.
C45: The units shall be digital passive infrared sensors with self
C46: adaptive technology.
C47: The unit shall be complete with a quick to install connector
C48: (QTI) and universal voltage power pack(UVP).
C49: The equipment shall include all necessary fittings, fixtures and
C50: accessories to complete the works.
C51: The units shall be as Hubbell Building Automation or equal
C52: approved.
C54: SINGLE OUTPUT VERSION(ON/OFF - OPTION)
A56: Q | B56: =B28+1 -> 4 | C56: HBA: WASP: FHB141NPUNV with adpators, QTI and UVP | K56: No | L56: =$R$1*5 -> 50
C57: DUAL OUTPUT VERSION
C58: (Step Dimming & Smart Cycling - OPTION)
A59: Q | B59: =B56+1 -> 5 | C59: HBA: WASP: FHB142NPUNV with adpators, QTI and UVP | K59: No | L59: =$R$1*5 -> 50
C61: Occupancy and Daylight Harvesting Sensor
A62: Q | B62: 6 | C62: Sensors are ceiling/surface mount devices that provide a range
C63: of daylight harvesting features for Light Control System installations
C64: with finished ceilings (e.g. office ceiling board, tiles, sheetrock, plaster) | K64: No | L64: =$R$1*10 -> 100
A66: Q | B66: 7 | C66: High Bay Tridonic Sensors are ceiling/surface mount devices that
C67: provide a range of daylight harvesting features for Light Control
C68: System installations with finished ceilings (e.g. ceiling tiles, | K68: No | L68: =$R$1*5 -> 50
C69: sheetrock, plaster)
C75: Carried to Collection Page 81 EE
B76: Item | C76: Description | O76: Amount
C77: ELECTRICAL WORKS
C78: BILL OF QUANTITIES: BILL NO 17 OF 19
C80: COLLECTION
C81: OCCUPANCY SENSORS
C83: Page 79
C84: Page 80
C109: OCCUPANCY SENSORS
C110: TOTAL CARRIED TO BILL SUMMARY Page

Sheet BILL18
P1: 107.70% | R1: 1100%
B2: Item | C2: Description | K2: Unit | L2: Qty | M2: Supply & Deliver Rate | N2: Install Rate | O2: Amount
C3: ELECTRICAL WORKS
A4: R | C4: BILL OF QUANTITIES: BILL NO 18 OF 19
C5: LIGHTNING & SURGE PROTECTION
C6: Supply, deliver and install low voltage surge protection
C7: equipment and devices.
C8: The equipment shall include all necessary fittings, fixtures and
C9: accessories to complete the works.
C10: BARE COPPER EARTH CABLE
C11: Supply, deliver and install low voltage(600/1000V), bare,
C12: stranded, compacted, copper conductor cables.
C13: Checking of cable and overhead conductor lengths.
C14: The Contractor shall check such lengths on site before ordering
C15: the cable as he will not be paid for excess cable after the completion
C16: of the service. Any allowance for off-cuts shall be made in the unit
C17: rates. The final measurements shall be based on the net route length
C18: of cables concerned, installed in accordance with the requirements.
C19: However, the onus is on the Contractor to prove compliance
C20: with the specification.
C21: The cabling shall be installed either in excavations, cable trays,
C22: trunking, wireways, ground, sleeves, ducts, etc(measured
C23: elsewhere) and shall include all necessary fittings, fixtures and
C24: accessories required for the works.
C25: The cables shall be as per Abedare Cables or equal approved.
A28: R | B28: 1 | C28: 70mm2 Bare Copper earth conductor | K28: m | L28: =$R$1*5 -> 55
A29: R | B29: =B28+1 -> 2 | C29: 70mm2 Insulated Copper earth conductor | K29: m | L29: =$R$1*5 -> 55
A30: R | B30: 3 | C30: 150mm2 Bare Copper earth conductor | K30: m | L30: =$R$1*5 -> 55
A31: R | B31: 4 | C31: 150mm2 Insulated Copper earth conductor | K31: m | L31: =$R$1*5 -> 55
C33: EARTH ROD (Roof Conductor)
C34: Supply, deliver and install low voltage(600/1000V), copper
C35: clad, 16mm diameter, 1.8m earth rods, SABS approved.
C36: The rods shall be complete with all terminations, double nuts,
C37: washers, coupling, clamps, etc required for the works.
A38: R | B38: 5 | C38: 1.8m Copper Earth Rod | K38: No | L38: =$R$1*5 -> 55
A39: R | B39: =B38+1 -> 6 | C39: Extensible copper earth electrodes into ground mech
C40: driving, incl cpl driv blt | K40: No | L40: =$R$1*5 -> 55
A41: R | B41: 7 | C41: 50mm2 Aluminium roof conductor insulated on roof including
C42: Aluminium fixing accessories | K42: No | L42: =$R$1*5 -> 55
C44: Carried to Collection Page 85 EE
B45: Item | C45: Description | K45: Unit | L45: Qty | M45: Supply & Deliver Rate | N45: Install Rate | O45: Amount
C47: GENERAL ITEMS
A48: R | B48: 8 | C48: Sealing of joints with Denso tapes | K48: No | L48: =$R$1*5 -> 55
C49: Joining of various round/flat copper conductors by
C50: means of bolting, brazing or exothermic bonds
A51: R | B51: =B48+1 -> 9 | C51: Brass clamps termination to copper cable and to the
C52: top of the earth electrodes | K52: No | L52: =$R$1*5 -> 55
A53: R | B53: =B51+1 -> 10 | C53: Bonding of air termination conductor between, roof, gutters, etc | K53: No | L53: =$R$1*5 -> 55
A54: R | B54: =B53+1 -> 11 | C54: Bi-Metallic test joint between d/c system and earth | K54: No | L54: =$R$1*5 -> 55
A55: R | B55: =B54+1 -> 12 | C55: Re-inforcing brass bracket complete with galvanised
C56: steel wire, U bolt, brass terminal | K56: No | L56: =$R$1*5 -> 55
A57: R | B57: =B55+1 -> 13 | C57: Lightning protection points test in SIS Duo york box complete
C58: with PVC sliding lid, stainless steel screws and engraved cover. | K58: No | L58: =$R$1*5 -> 55
A59: R | B59: =B57+1 -> 14 | C59: Allow for visiting of the site and the carrying out of the required
C60: pre resistivity tests, risk assessments and the issuing of the test
C61: results and construction shop drawings to the Engineer prior to
C62: the works (earthing & lightning protection system) | K62: Item | L62: =$R$1*5 -> 55
A63: R | B63: =B59+1 -> 15 | C63: Allow for the testing of the completed system and the
C64: issue of a prescribed test certificate. | K64: Item | L64: =$R$1*5 -> 55
C66: SURGE ARRESTORS
C67: Supply, deliver and install indoor surge arrestors in existing or
C68: new switchboards.
C69: The units shall comply with SANS 61643 or VDE 0675.
C70: The equipment shall include all necessary fittings, fixtures and
C71: accessories to complete the works.
C72: The units shall be as Dehn or equal approved.
C74: SINGLE PHASE
C75: Combined SPDS TYPE 1: Type 1, Class 1
A76: R | B76: =B63+1 -> 16 | C76: Modular combined lightning current and surge arrestor | K76: No | L76: =$R$1*5 -> 55
C78: SINGLE PHASE
C79: Combined SPDS TYPE 2: Type 2, Class 2
A80: R | B80: =B76+1 -> 17 | C80: Modular combined lightning current and surge arrestor | K80: No | L80: =$R$1*5 -> 55
C82: THREE PHASE
C83: Combined SPDS TYPE 1: Type 1, Class 1
A84: R | B84: =B80+1 -> 18 | C84: Modular combined lightning current and surge arrestor | K84: No | L84: =$R$1*5 -> 55
C86: THREE PHASE
C87: Combined SPDS TYPE 2: Type 2, Class 2
A88: R | B88: =B84+1 -> 19 | C88: Modular combined lightning current and surge arrestor | K88: No | L88: =$R$1*5 -> 55
C90: Carried to Collection Page 85 EE
B91: Item | C91: Description | K91: Unit | L91: Qty | M91: Supply & Deliver Rate | N91: Install Rate | O91: Amount
C93: UNDER/OVERVOLTAGE RELAYS
C94: Supply, deliver and install under/over voltage relays in existing or
C95: new switchboards. The unit shall be complete with all auxillary
C96: components, connections, terminations, circuit breakers, etc
C97: The unit shall be as per Clearline or equal approved.
A98: R | B98: 20 | C98: 12-00407 Trip-Connect (Single Phase),
C99: Single Phase under/overvoltage relay fixed line
C100: protection system complete with circuit breaker | K100: Item | L100: =$R$1*5 -> 55
A102: R | B102: =B98+1 -> 21 | C102: 12-00409 Trip-Connect 3P (Programmable),
C103: Three Phase under/overvoltage relay fixed line
C104: protection system complete with circuit breaker | K104: Item | L104: =$R$1*5 -> 55
C128: Carried to Collection Page 85 EE
B129: Item | C129: Description | O129: Amount
C131: ELECTRICAL WORKS
C132: BILL OF QUANTITIES: BILL NO 18 OF 19
C134: COLLECTION
C136: LIGHTNING & SURGE PROTECTION
C138: Page 82
C139: Page 83
C140: Page 84
C162: LIGHTNING & SURGE PROTECTION
C163: TOTAL CARRIED TO BILL SUMMARY Page

Sheet BILL19
P1: 107.70% | R1: 1800%
B2: Item | C2: Description | K2: Unit | L2: Qty | M2: Supply & Deliver Rate | N2: Install Rate | O2: Amount
C3: ELECTRICAL WORKS
A4: S | C4: BILL OF QUANTITIES: BILL NO 19 OF 19
C5: PHOTOVOLTAIC SYSTEMS
C6: Supply, deliver and install photovoltaics systems, including all
C7: accessories to complete the works in full compliance with applicable
C8: SABS or IEC and SANS standards. The technologies of the system
C9: must be market related.
C12: PV MODULES (inclusive of 25-year reliability and warranty)
C13: NB: Min +25 year performance warranty + 10 years equipment
C14: guarantee
A16: S | B16: 1 | C16: Canadian Solar SuperPower CS6K-305MS 305W Mono-crystalline | K16: ea | L16: =$R$1*1 -> 18
C17: Solar Panel with Integrated Compatible Power Optimizer, MC4 I/O
C18: connectors and all accessories inclusive or Equally Approved
A20: S | B20: =B16+1 -> 2 | C20: Canadian Solar KuPower CS3K-320MS 320W Mono-crystalline | K20: ea | L20: =$R$1*1 -> 18
C21: Solar Panel with Integrated Compatible Power Optimizer, MC4 I/O
C22: connectors and all accessories inclusive or Equally Approved
A24: S | B24: =B20+1 -> 3 | C24: Canadian Solar HiDM Black CS1H-320MS 320W Mono-crystalline | K24: ea | L24: =$R$1*1 -> 18
C25: Solar Panel with Integrated Compatible Power Optimizer, MC4 I/O
C26: connectors and all accessories inclusive or Equally Approved
A28: S | B28: =B24+1 -> 4 | C28: Canadian Solar HiDM Black CS1H-325MS 325W Mono-crystalline | K28: ea | L28: =$R$1*1 -> 18
C29: Solar Panel with Integrated Compatible Power Optimizer, MC4 I/O
C30: connectors and all accessories inclusive or Equally Approved
A32: S | B32: =B28+1 -> 5 | C32: Canadian Solar HiDM Black CS1H-330MS 330W Mono-crystalline | K32: ea | L32: =$R$1*1 -> 18
C33: Solar Panel with Integrated Compatible Power Optimizer, MC4 I/O
C34: connectors and all accessories inclusive or Equally Approved
A36: S | B36: =B32+1 -> 6 | C36: Canadian Solar 330W Polycrystalline 72cells 35mm frame | K36: ea | L36: =$R$1*1 -> 18
C37: Polycrystalline Solar Panel with Integrated Compatible Power
C38: Optimizer, MC4 I/O connectors and all accessories inclusive or
C39: Equally Approved
A41: S | B41: =B36+1 -> 7 | C41: Canadian Solar 265W Polycrystalline 60cells 40mm frame | K41: ea | L41: =$R$1*1 -> 18
C42: Polycrystalline Solar Panel with Integrated Compatible Power
C43: Optimizer, MC4 I/O connectors and all accessories inclusive or
C44: Equally Approved
C46: POWER OPTIMIZER
C47: NB: Min 25-year performance warranty + 10-years equipment
C48: guarantee (continue on next page)
C52: Carried to Collection Page 91 EE
B53: Item | C53: Description | K53: Unit | L53: Qty | M53: Supply & Deliver Rate | N53: Install Rate | O53: Amount
A55: S | B55: =B41+1 -> 8 | C55: Solaredge or equally approved UV Resistance Power Optimizer | K55: ea | L55: =$R$1*1 -> 18
C56: Module P300 (for 60-cell modules) including MC4 Input/Output
C57: Connectors and Double Insulated Wire
A59: S | B59: =B55+1 -> 9 | C59: Solaredge or equally approved UV Resistance Power Optimizer | K59: ea | L59: =$R$1*1 -> 18
C60: Module P370 (for high power 60 / 72 cell modules) including MC4
C61: Input/Output Connectors and Double Insulated Wire
A63: S | B63: =B59+1 -> 10 | C63: Solaredge or equally approved UV Resistance Power Optimizer | K63: ea | L63: =$R$1*1 -> 18
C64: Module P404 (for 60 / 72 cell short strings) including MC4
C65: Input/Output Connectors and Double Insulated Wire
A67: S | B67: =B63+1 -> 11 | C67: Solaredge or equally approved UV Resistance Power Optimizer | K67: ea | L67: =$R$1*1 -> 18
C68: Module P730 (for 2x 72-cell modules) including MC4 Input/Output
C69: Connectors and Double Insulated Wire
C71: INVERTORS (inclusive of 25-year reliability and warranty)
A73: S | B73: =B67+1 -> 12 | C73: Solaredge or equally approved Grid-Tied Three Phase SE10K | K73: ea | L73: =$R$1*1 -> 18
C74: 10kW String Inverter with Synergy Technology including
C75: Anti-Islanding Protection
A77: S | B77: =B73+1 -> 13 | C77: Solaredge or equally approved Grid-Tied Three Phase SE33.3K | K77: ea | L77: =$R$1*1 -> 18
C78: 33.3kW String Inverter with Synergy Technology including
C79: Anti-Islanding Protection
A81: S | B81: =B77+1 -> 14 | C81: Solaredge or equally approved Grid-Tied Three Phase SE50K | K81: ea | L81: =$R$1*1 -> 18
C82: 50kW String Inverter with Synergy Technology including
C83: Anti-Islanding Protection
A85: S | B85: =B81+1 -> 15 | C85: Solaredge or equally approved Grid-Tied Three Phase SE60K | K85: ea | L85: =$R$1*1 -> 18
C86: 60kW String Inverter with Synergy Technology including
C87: Anti-Islanding Protection
A89: S | B89: =B85+1 -> 16 | C89: Solaredge or equally approved Grid-Tied Three Phase SE82,5K | K89: ea | L89: =$R$1*1 -> 18
C90: 82,5kW String Inverter with Synergy Technology including
C91: Anti-Islanding Protection
A93: S | B93: =B89+1 -> 17 | C93: Solaredge or equally approved Off-Grid Three Phase SE10K 10kW | K93: ea | L93: =$R$1*1 -> 18
C94: String Inverter with Synergy Technology including Protection
A96: S | B96: =B93+1 -> 18 | C96: Solaredge or equally approved Off-Grid Three Phase SE33.3K | K96: ea | L96: =$R$1*1 -> 18
C97: 33.3kW String Inverter with Synergy Technology including
C98: Protection
A100: S | B100: =B96+1 -> 19 | C100: Solaredge or equally approved Off-Grid Three Phase SE50K 50kW | K100: ea | L100: =$R$1*1 -> 18
C101: String Inverter with Synergy Technology including Protection
A103: S | B103: =B100+1 -> 20 | C103: Solaredge or equally approved Off-Grid Three Phase SE60K 60kW | K103: ea | L103: =$R$1*1 -> 18
C104: String Inverter with Synergy Technology including Protection
A106: S | B106: =B103+1 -> 21 | C106: Solaredge or equally approved Off-Grid Three Phase SE82,5K | K106: ea | L106: =$R$1*1 -> 18
C107: 82,5kW String Inverter with Synergy Technology including
C108: Protection
C111: Carried to Collection Page 91 EE
B112: Item | C112: Description | K112: Unit | L112: Qty | M112: Supply & Deliver Rate | N112: Install Rate | O112: Amount
C114: MISCELENIOUS
C115: NB: Min 25-year performance warranty + 10-years equipment
C116: guarantee
A118: S | B118: =B106+1 -> 22 | C118: SolarEdge Module temperature sensor (SE1000-SEN-TMOD-S2) | K118: ea | L118: =$R$1*1 -> 18
C119: or Equally approved
A121: S | B121: =B118+1 -> 23 | C121: SolarEdge Ambient temperature sensor (SE1000-SEN-TAMB-S2) | K121: ea | L121: =$R$1*1 -> 18
C122: or Equally approved
A124: S | B124: =B121+1 -> 24 | C124: SolarEdge Irradiance sensor (SE1000-SEN-IRR-S1) | K124: ea | L124: =$R$1*1 -> 18
C125: or Equally approved
A127: S | B127: =B124+1 -> 25 | C127: SolarEdge Wind sensor (SE1000-SEN-WIND-S1) | K127: ea | L127: =$R$1*1 -> 18
C128: or Equally approved
A130: S | B130: =B127+1 -> 26 | C130: ARTsolar 100Ah 12V GEL Deep-cycle Battery or Equally approved | K130: ea | L130: =$R$1*1 -> 18
A132: S | B132: =B130+1 -> 27 | C132: ARTsolar 200Ah 12V GEL Deep-cycle Battery or Equally approved | K132: ea | L132: =$R$1*1 -> 18
A134: S | B134: =B132+1 -> 28 | C134: SolarEdge StoreEdge Interface SEST1-S1 or Equally approved | K134: ea | L134: =$R$1*1 -> 18
A136: S | B136: =B134+1 -> 29 | C136: SolarEdge StoreEdge Interface SEST1-S2 or Equally approved | K136: ea | L136: =$R$1*1 -> 18
A138: S | B138: =B136+1 -> 30 | C138: SolarEdge StoreEdge Interface SEST1-S4 or Equally approved | K138: ea | L138: =$R$1*1 -> 18
A140: S | B140: =B138+1 -> 31 | C140: Victron Energy or Equally approved SmartSolar Charge | K140: ea | L140: =$R$1*1 -> 18
C141: Controllers with load output MPPT BlueSolar 150/85
A143: S | B143: =B140+1 -> 32 | C143: Victron Energy or Equally approved SmartSolar Charge | K143: ea | L143: =$R$1*1 -> 18
C144: Controllers with load output EasySolar 12/1600/70
A146: S | B146: =B143+1 -> 33 | C146: Victron Energy or Equally approved SmartSolar Charge | K146: ea | L146: =$R$1*1 -> 18
C147: Controllers with load output EasySolar 24/3000/70-50 MPPT 150/70
A149: S | B149: =B146+1 -> 34 | C149: Victron Energy or Equally approved SmartSolar Charge Controllers with load output EasySolar 48/5000/70-100 MPPT 150/100 | K149: ea | L149: =$R$1*1 -> 18
C150: Controllers with load output EasySolar 48/5000/70-100 MPPT
C151: 150/100
C161: Carried to Collection Page
B162: Item | C162: Description | K162: Unit | L162: Qty | M162: Supply & Deliver Rate | N162: Install Rate | O162: Amount
C164: CABLES
C166: Cable installation Incl U-clamps, tag numbers and cable straps.
C167: Supply deliver to site and store 1000/600 volt
C168: Cu/PVC/SWA/PVC/ECC cables. Install, rack, strap and testing
C169: of cables as per specification including clamps, ties and cable
C170: numbering system. Rates to include for wastage. Contractor will
C171: only be reimbursed for installed cable measured on site between
C172: terminations. Cable bonding of all Earth Continuity Conductors
C173: from the incoming and outgoing cables will be properly crimped
C174: into cable lugs and bolted to their respective earth bars. NB: All
C175: cables installed in outdoors environment shall be UV
C176: resistance and shall have MC4 Input/Output connectors
A178: S | B178: =B149+1 -> 35 | C178: Lapp ÖlFlex Solar XLR 4mm² single core DC cable | K178: ea | L178: =$R$1*1 -> 18
A181: S | B181: =B178+1 -> 36 | C181: Lapp ÖlFlex Solar XLR 6mm² single core DC cable | K181: m | L181: =$R$1*1 -> 18
A184: S | B184: =B181+1 -> 37 | C184: Lapp ÖlFlex Solar XLR 10mm² single core DC cable | K184: m | L184: =$R$1*1 -> 18
A187: S | B187: =B184+1 -> 38 | C187: Lapp ÖlFlex Solar XLR 16mm² single core DC cable | K187: m | L187: =$R$1*1 -> 18
A190: S | B190: =B187+1 -> 39 | C190: LV AWA 25mm² PVC copper single core DC cable | K190: m | L190: =$R$1*1 -> 18
A193: S | B193: =B190+1 -> 40 | C193: LV AWA 35mm² PVC copper single core DC cable | K193: m | L193: =$R$1*1 -> 18
A196: S | B196: =B193+1 -> 41 | C196: 16mm² x 4 core copper PVC/SWA+ECC 600/1000V + 10mm² Earth | K196: m | L196: =$R$1*1 -> 18
C197: Wire
A199: S | B199: =B196+1 -> 42 | C199: 25mm² x 4 core copper PVC/SWA+ECC 600/1000V + 16mm² Earth | K199: m | L199: =$R$1*1 -> 18
C200: Wire
A202: S | B202: =B199+1 -> 43 | C202: 50mm² x 4 core copper PVC/SWA+ECC 600/1000V + 25mm² Earth | K202: m | L202: =$R$1*1 -> 18
C203: Wire
A205: S | B205: =B202+1 -> 44 | C205: 70mm² x 4 core copper PVC/SWA+ECC 600/1000V + 35mm² Earth | K205: m | L205: =$R$1*1 -> 18
C206: Wire
C208: Carried to Collection Page 91 EE
B209: Item | C209: Description | K209: Unit | L209: Qty | M209: Supply & Deliver Rate | N209: Install Rate | O209: Amount
C211: TERMINATIONS
C213: Cable terminations & Joints - Incl glands, cable numbers, wire
C214: numbers, lugs. For PVC/SWA/PVC/ECC cables, shall include
C215: supply installation and testing of the IP 65 glands with corrosion
C216: guard, making -off the cable, gland plate, switchgear or appliance
C217: and final connection of cable tails into board or terminals. NB: All
C218: cables terminations installed in outdoor environment shall be
C219: UV resistance and shall have MC4 Input/Output connectors
A221: S | B221: =B205+1 -> 45 | C221: Lapp ÖlFlex Solar XLR 4mm² single core DC cable | K221: ea | L221: =$R$1*1 -> 18
A223: S | B223: =B221+1 -> 46 | C223: Lapp ÖlFlex Solar XLR 6mm² single core DC cable | K223: ea | L223: =$R$1*1 -> 18
A225: S | B225: =B223+1 -> 47 | C225: Lapp ÖlFlex Solar XLR 10mm² single core DC cable | K225: ea | L225: =$R$1*1 -> 18
A227: S | B227: =B225+1 -> 48 | C227: Lapp ÖlFlex Solar XLR 16mm² single core DC cable | K227: ea | L227: =$R$1*1 -> 18
A229: S | B229: =B227+1 -> 49 | C229: LV AWA 25mm² PVC copper single core DC cable | K229: ea | L229: =$R$1*1 -> 18
A231: S | B231: =B229+1 -> 50 | C231: LV AWA 35mm² PVC copper single core DC cable | K231: ea | L231: =$R$1*1 -> 18
A233: S | B233: =B231+1 -> 51 | C233: 16mm² x 4 core copper PVC/SWA+ECC 600/1000V + 10mm² Earth | K233: ea | L233: =$R$1*1 -> 18
C234: Wire
A236: S | B236: =B233+1 -> 52 | C236: 25mm² x 4 core copper PVC/SWA+ECC 600/1000V + 16mm² Earth | K236: ea | L236: =$R$1*1 -> 18
C237: Wire
A239: S | B239: =B236+1 -> 53 | C239: 50mm² x 4 core copper PVC/SWA+ECC 600/1000V + 25mm² Earth | K239: ea | L239: =$R$1*1 -> 18
C240: Wire
A242: S | B242: =B239+1 -> 54 | C242: 70mm² x 4 core copper PVC/SWA+ECC 600/1000V + 35mm² Earth | K242: ea | L242: =$R$1*1 -> 18
C243: Wire
C245: TESTING, MONITORING and COMMISSIONING
A247: S | B247: =B242+1 -> 55 | C247: Testing, Monitoring and Commission PV System to Remote | K247: ea | L247: =$R$1*1 -> 18
C248: Monitoring Software and Provide As-Built Maintenance
C249: Manuals and COC's in accordance to the applicable SANS for the
C250: complete installation
C255: Carried to Collection Page 91 EE
B256: Item | C256: Description | O256: Amount
C258: ELECTRICAL WORKS
C259: BILL OF QUANTITIES: BILL NO 19 OF 19
C261: COLLECTION
C263: PHOTO-VOLTAIC SYSTEM
C265: Page 86
C266: Page 87
C267: Page 88
C268: Page 89
C269: Page 90
C289: PHOTOVOLTAIC SYSTEMS
C290: TOTAL CARRIED TO BILL SUMMARY Page 92 EE

Sheet SUMMARY
B4: Page | C4: Description | O4: Amount
C5: SCHEDULE OF RATES - BILL SUMMARY
A7: A | B7: =B5+1 -> 1 | C7: BILL NO 1: ARTISAN
A9: B | B9: =B7+1 -> 2 | C9: BILL NO 2: CERTIFICATE OF COMPLIANCE
A11: C | B11: 13 | C11: BILL NO 3: CIRCUIT BREAKERS, SWITCHGEAR, DIST. BOARD & ASSOCIATED EQUIPMENT
A13: D | B13: 16 | C13: BILL NO 4: CABLE TRENCHING
A15: E | B15: 21 | C15: BILL NO 5: CABLE RETICULATION
A17: F | B17: 27 | C17: BILL NO 6: WIREWAYS & ACCESSORIES
A19: G | B19: 31 | C19: BILL NO 7: WIRING
A21: H | B21: 46 | C21: BILL NO 8: LUMINAIRES
A23: I | B23: 55 | C23: BILL NO 9: LAMPS
A25: J | B25: 62 | C25: BILL NO 10: LUMINAIRE ACCESSORIES
A27: K | B27: 62 | C27: BILL NO 11: LIGHT SWITCHES
A29: L | B29: 63 | C29: BILL NO 12: POWERSKIRTING
A31: M | B31: 70 | C31: BILL NO 13: SWITCHED SOCKET OUTLETS, ENCLOSURES & ACCESSORIES
A33: N | B33: 71 | C33: BILL NO 14: GEYSER SPARES & ACCESSORIES
A35: O | B35: 72 | C35: BILL NO 15: HYDROBOIL
A37: P | B37: 76 | C37: BILL NO 16: FANS, DRYERS & ACCESSORIES
A39: Q | B39: 79 | C39: BILL NO 17: OCCUPANCY SENSORS
A41: R | B41: 83 | C41: BILL NO 18: LIGHTNING & SURGE PROTECTION
A43: S | B43: 86 | C43: BILL No 19: PHOTOVOLTAIC SYSTEMS
C45: TOTAL EXCLUDING VAT (CARRIED TO FINAL SUMMARY)
N47: 15% VAT
N49: TOTAL INCLUDING 15% VAT
